Workbook

Sheet rtr
A1: BUS_I | B1: BUS_J | C1: ID_CKT | D1: X | E1: R | F1: CTOIJ | G1: CTOJI
A2: 4404 | B2: 4800 | C2: 1 | D2: 0.0783 | E2: 0.0098 | F2: 343 | G2: 343
A3: 4330 | B3: 4827 | C3: 1 | D3: 0.022 | E3: 0.0057 | F3: 142.5 | G3: 142.5
A4: 4173 | B4: 4800 | C4: 1 | D4: 0.0918 | E4: 0 | F4: 16 | G4: 16
A5: 4800 | B5: 4827 | C5: 1 | D5: 0.0565 | E5: 0 | F5: 114 | G5: 114
A6: 4827 | B6: 4173 | C6: 1 | D6: 0.0687 | E6: 0 | F6: 16 | G6: 16
A7: 1101 | B7: 1124 | C7: 2 | D7: 0.026728 | E7: 0.004132 | F7: 396.4 | G7: 396.4
A8: 4800 | B8: 4832 | C8: 1 | D8: 0.0005 | E8: 0.0001 | F8: 343 | G8: 343
A9: 4750 | B9: 4832 | C9: 1 | D9: 0.011 | E9: 0.0014 | F9: 343 | G9: 343
A10: 4410 | B10: 4800 | C10: 1 | D10: 0.0014 | E10: 0.0002 | F10: 98 | G10: 98
A11: 4404 | B11: 4803 | C11: 1 | D11: 0.074 | E11: 0.0114 | F11: 240 | G11: 240
A12: 1133 | B12: 1444 | C12: 1 | D12: 0.052975 | E12: 0.009174 | F12: 262.9 | G12: 262.9
A13: 1102 | B13: 1105 | C13: 1 | D13: 0.04076 | E13: 0.00878 | F13: 294.5 | G13: 294.5
A14: 1102 | B14: 1106 | C14: 1 | D14: 0.00028 | E14: 5e-05 | F14: 491.6 | G14: 491.6
A15: 1102 | B15: 1106 | C15: 2 | D15: 0.00037 | E15: 0.0001 | F15: 482.8 | G15: 482.8
A16: 1102 | B16: 1111 | C16: 1 | D16: 0.00183 | E16: 0.00052 | F16: 245.8 | G16: 245.8
A17: 1103 | B17: 1141 | C17: 1 | D17: 0.00552 | E17: 0.00107 | F17: 558.5 | G17: 558.5
A18: 1103 | B18: 1141 | C18: 2 | D18: 0.00552 | E18: 0.00107 | F18: 558.5 | G18: 558.5
A19: 1106 | B19: 1109 | C19: 1 | D19: 0.03027 | E19: 0.00582 | F19: 491.6 | G19: 491.6
A20: 1106 | B20: 1132 | C20: 1 | D20: 0.01201 | E20: 0.00223 | F20: 491.6 | G20: 491.6
A21: 1107 | B21: 1108 | C21: 1 | D21: 0.01247 | E21: 0.00241 | F21: 558.5 | G21: 558.5
A22: 1107 | B22: 1109 | C22: 1 | D22: 0.00849 | E22: 0.00164 | F22: 558.5 | G22: 558.5
A23: 1108 | B23: 1444 | C23: 1 | D23: 0.05114 | E23: 0.00992 | F23: 558.5 | G23: 558.5
A24: 1108 | B24: 1444 | C24: 2 | D24: 0.05114 | E24: 0.00992 | F24: 558.5 | G24: 558.5
A25: 1110 | B25: 1119 | C25: 1 | D25: 0.03773 | E25: 0.00475 | F25: 424 | G25: 424
A26: 1113 | B26: 1115 | C26: 1 | D26: 0.03309 | E26: 0.00924 | F26: 147.5 | G26: 147.5
A27: 1114 | B27: 1115 | C27: 2 | D27: 0.08134 | E27: 0.0232 | F27: 167.6 | G27: 167.6
A28: 1114 | B28: 1122 | C28: 1 | D28: 0.05475 | E28: 0.01562 | F28: 167.6 | G28: 167.6
A29: 1115 | B29: 1122 | C29: 1 | D29: 0.02662 | E29: 0.0076 | F29: 167.6 | G29: 167.6
A30: 1120 | B30: 1121 | C30: 1 | D30: 0.02802 | E30: 0.00602 | F30: 245.8 | G30: 245.8
A31: 1126 | B31: 1129 | C31: 2 | D31: 0.00144 | E31: 0.00028 | F31: 558.5 | G31: 558.5
A32: 1132 | B32: 1219 | C32: 1 | D32: 0.02332 | E32: 0.00358 | F32: 365.54 | G32: 365.54
A33: 1141 | B33: 1444 | C33: 1 | D33: 0.02995 | E33: 0.00582 | F33: 558.5 | G33: 558.5
A34: 1141 | B34: 1444 | C34: 2 | D34: 0.02995 | E34: 0.00582 | F34: 558.5 | G34: 558.5
A35: 1141 | B35: 1845 | C35: 1 | D35: 0.02344 | E35: 0.00392 | F35: 514.7 | G35: 514.7
A36: 1141 | B36: 1845 | C36: 2 | D36: 0.02344 | E36: 0.00392 | F36: 514.7 | G36: 514.7
A37: 1151 | B37: 1240 | C37: 1 | D37: 0.13504 | E37: 0.03896 | F37: 73.7 | G37: 73.7
A38: 1151 | B38: 12177 | C38: 1 | D38: 0.07294 | E38: 0.01769 | F38: 94.4 | G38: 94.4
A39: 1151 | B39: 12204 | C39: 1 | D39: 0.01741 | E39: 0.00441 | F39: 94.4 | G39: 94.4
A40: 1151 | B40: 12205 | C40: 1 | D40: 0.01643 | E40: 0.00417 | F40: 94.41 | G40: 94.41
A41: 1151 | B41: 12241 | C41: 1 | D41: 0.14894 | E41: 0.04297 | F41: 73.7 | G41: 73.7
A42: 1153 | B42: 1408 | C42: 1 | D42: 0.28095 | E42: 0.08105 | F42: 83.8 | G42: 83.8
A43: 1154 | B43: 1204 | C43: 1 | D43: 0.06893 | E43: 0.02957 | F43: 83.8 | G43: 83.8
A44: 1154 | B44: 1204 | C44: 2 | D44: 0.06693 | E44: 0.02089 | F44: 83.8 | G44: 83.8
A45: 1154 | B45: 1204 | C45: 3 | D45: 0.06693 | E45: 0.02089 | F45: 83.8 | G45: 83.8
A46: 1154 | B46: 12080 | C46: 1 | D46: 0.0165 | E46: 0.00515 | F46: 83.8 | G46: 83.8
A47: 1154 | B47: 1159 | C47: 1 | D47: 0.01639 | E47: 0.00512 | F47: 83.8 | G47: 83.8
A48: 1154 | B48: 1163 | C48: 1 | D48: 0.00633 | E48: 0.00154 | F48: 94.41 | G48: 94.41
A49: 1154 | B49: 1425 | C49: 1 | D49: 0.28262 | E49: 0.11227 | F49: 67.2 | G49: 67.2
A50: 1159 | B50: 1331 | C50: 1 | D50: 0.12021 | E50: 0.03752 | F50: 83.8 | G50: 83.8
A51: 4122 | B51: 4403 | C51: 1 | D51: 0.0918 | E51: 0 | F51: 16 | G51: 16
A52: 4316 | B52: 4122 | C52: 1 | D52: 0.0687 | E52: 0 | F52: 16 | G52: 16
A53: 4403 | B53: 4316 | C53: 1 | D53: 0.0565 | E53: 0 | F53: 114 | G53: 114
A54: 6059 | B54: 6684 | C54: 51 | D54: 0.020902 | E54: 0.004497 | F54: 156 | G54: 156
A55: 4124 | B55: 4403 | C55: 2 | D55: 0.0918 | E55: 0 | F55: 16 | G55: 16
A56: 4316 | B56: 4124 | C56: 2 | D56: 0.0687 | E56: 0 | F56: 16 | G56: 16
A57: 4403 | B57: 4316 | C57: 2 | D57: 0.0565 | E57: 0 | F57: 114 | G57: 114
A58: 3211 | B58: 29181 | C58: 1 | D58: 0.01742 | E58: 0.002751 | F58: 317.3 | G58: 317.3
A59: 6003 | B59: 6470 | C59: 2B | D59: 0.008072 | E59: 0.002676 | F59: 225 | G59: 225
A60: 1101 | B60: 1908 | C60: 1 | D60: 0.014645 | E60: 0.001977 | F60: 453.7 | G60: 453.7
A61: 3211 | B61: 3592 | C61: 1 | D61: 0.000588 | E61: 9.3e-05 | F61: 317.3 | G61: 317.3
A62: 3301 | B62: 3592 | C62: 1 | D62: 0.020212 | E62: 0.003188 | F62: 317.3 | G62: 317.3
A63: 6008 | B63: 6520 | C63: 4A | D63: 0.064798 | E63: 0.007058 | F63: 275 | G63: 275
A64: 6182 | B64: 6520 | C64: 4B | D64: 0.037092 | E64: 0.00404 | F64: 275 | G64: 275
A65: 6008 | B65: 6520 | C65: 5A | D65: 0.064798 | E65: 0.007058 | F65: 275 | G65: 275
A66: 6182 | B66: 6520 | C66: 5B | D66: 0.037092 | E66: 0.00404 | F66: 275 | G66: 275
A67: 1732 | B67: 1710 | C67: 1 | D67: 0.068025 | E67: 0.011781 | F67: 438.2 | G67: 438.2
A68: 1407 | B68: 1736 | C68: 1 | D68: 0.066011 | E68: 0.019042 | F68: 80.1 | G68: 80.1
A69: 1730 | B69: 1444 | C69: 1 | D69: 0.079899 | E69: 0.013837 | F69: 438.2 | G69: 438.2
A70: 1427 | B70: 1735 | C70: 1 | D70: 0.020449 | E70: 0.005899 | F70: 80.1 | G70: 80.1
A71: 1526 | B71: 1732 | C71: 1 | D71: 0.4548 | E71: 0 | F71: 30.6 | G71: 30.6
A72: 1732 | B72: 1736 | C72: 1 | D72: 0.247 | E72: 0 | F72: 90 | G72: 90
A73: 1736 | B73: 1526 | C73: 1 | D73: 0.1584 | E73: 0 | F73: 30.6 | G73: 30.6
A74: 1527 | B74: 1730 | C74: 1 | D74: 0.458 | E74: 0 | F74: 30.6 | G74: 30.6
A75: 1730 | B75: 1735 | C75: 1 | D75: 0.2486 | E75: 0 | F75: 90 | G75: 90
A76: 1735 | B76: 1527 | C76: 1 | D76: 0.1598 | E76: 0 | F76: 30.6 | G76: 30.6
A77: 58150 | B77: 58200 | C77: 1 | D77: 0.028658 | E77: 0.004095 | F77: 478 | G77: 478
A78: 1122 | B78: 1174 | C78: 1 | D78: 0.020741 | E78: 0.005703 | F78: 117 | G78: 117
A79: 1131 | B79: 1174 | C79: 1 | D79: 0.013952 | E79: 0.003833 | F79: 117 | G79: 117
A80: 1427 | B80: 14002 | C80: 1 | D80: 0.335325 | E80: 0.106882 | F80: 58.6 | G80: 58.6
A81: 14002 | B81: 1718 | C81: 1 | D81: 0.172938 | E81: 0.055123 | F81: 58.6 | G81: 58.6
A82: 27371 | B82: 27501 | C82: 1 | D82: 0.048921 | E82: 0.008831 | F82: 260 | G82: 260
A83: 27381 | B83: 27501 | C83: 1 | D83: 0.000379 | E83: 6.8e-05 | F83: 260 | G83: 260
A84: 58450 | B84: 58500 | C84: 1 | D84: 0.01346 | E84: 0.00141 | F84: 562 | G84: 562
A85: 6173 | B85: 6604 | C85: 57 | D85: 0.000724 | E85: 0.000183 | F85: 93 | G85: 93
A86: 50800 | B86: 51300 | C86: 1 | D86: 0.01224 | E86: 0.001531 | F86: 508 | G86: 508
A87: 51300 | B87: 53200 | C87: 1 | D87: 0.03219 | E87: 0.005099 | F87: 464 | G87: 464
A88: 1306 | B88: 1862 | C88: 1 | D88: 0.186783 | E88: 0.059219 | F88: 73.7 | G88: 73.7
A89: 1302 | B89: 1862 | C89: 1 | D89: 0.18091 | E89: 0.057357 | F89: 73.7 | G89: 73.7
A90: 50900 | B90: 54750 | C90: 1 | D90: 0.057363 | E90: 0.010629 | F90: 389 | G90: 389
A91: 54750 | B91: 53000 | C91: 1 | D91: 0.013601 | E91: 0.002472 | F91: 389 | G91: 389
A92: 1323 | B92: 1863 | C92: 1 | D92: 0.230358 | E92: 0.07301 | F92: 73.7 | G92: 73.7
A93: 1863 | B93: 1306 | C93: 1 | D93: 0.379413 | E93: 0.120252 | F93: 73.7 | G93: 73.7
A94: 1429 | B94: 14011 | C94: 1 | D94: 0.433296 | E94: 0.137205 | F94: 58.6 | G94: 58.6
A95: 14011 | B95: 1702 | C95: 1 | D95: 0.198594 | E95: 0.062885 | F95: 58.6 | G95: 58.6
A96: 3040 | B96: 3213 | C96: 1 | D96: 0.02954 | E96: 0.00072 | F96: 151.8 | G96: 151.8
A97: 3213 | B97: 3408 | C97: 1 | D97: 0.04571 | E97: 0.00191 | F97: 151.8 | G97: 151.8
A98: 3116 | B98: 3424 | C98: 1 | D98: 0.32885 | E98: 0.14405 | F98: 47.9 | G98: 47.9
A99: 1159 | B99: 1331 | C99: 2 | D99: 0.12021 | E99: 0.03752 | F99: 83.8 | G99: 83.8
A100: 1163 | B100: 12243 | C100: 1 | D100: 0.03214 | E100: 0.0105 | F100: 62.82 | G100: 62.82
A101: 1163 | B101: 12269 | C101: 1 | D101: 0.00748 | E101: 0.00244 | F101: 83.8 | G101: 83.8
A102: 1204 | B102: 12080 | C102: 1 | D102: 0.0629 | E102: 0.02281 | F102: 74.9 | G102: 74.9
A103: 1204 | B103: 12089 | C103: 1 | D103: 0.02624 | E103: 0.0079 | F103: 83.8 | G103: 83.8
A104: 1215 | B104: 12007 | C104: 1 | D104: 0.05647 | E104: 0.01857 | F104: 94.4 | G104: 94.4
A105: 1215 | B105: 12094 | C105: 1 | D105: 0.0538 | E105: 0.02854 | F105: 58 | G105: 58
A106: 1215 | B106: 12280 | C106: 1 | D106: 0.02609 | E106: 0.00917 | F106: 74.9 | G106: 74.9
A107: 1216 | B107: 12183 | C107: 1 | D107: 0.00382 | E107: 0.0014 | F107: 74.9 | G107: 74.9
A108: 1220 | B108: 1241 | C108: 1 | D108: 0.09515 | E108: 0.05109 | F108: 51.2 | G108: 51.2
A109: 1240 | B109: 12219 | C109: 1 | D109: 0.10922 | E109: 0.03152 | F109: 73.7 | G109: 73.7
A110: 1241 | B110: 12219 | C110: 1 | D110: 0.00256 | E110: 0.00083 | F110: 73.7 | G110: 73.7
A111: 1241 | B111: 12220 | C111: 1 | D111: 0.00282 | E111: 0.00092 | F111: 73 | G111: 73
A112: 1249 | B112: 12049 | C112: 1 | D112: 0.16864 | E112: 0.05335 | F112: 83.8 | G112: 83.8
A113: 1301 | B113: 1331 | C113: 1 | D113: 0.15588 | E113: 0.04497 | F113: 83.8 | G113: 83.8
A114: 1301 | B114: 1810 | C114: 1 | D114: 0.18269 | E114: 0.05271 | F114: 83.8 | G114: 83.8
A115: 1302 | B115: 1310 | C115: 1 | D115: 0.30868 | E115: 0.24593 | F115: 35.4 | G115: 35.4
A116: 1302 | B116: 1310 | C116: 2 | D116: 0.24308 | E116: 0.07707 | F116: 73.7 | G116: 73.7
A117: 1303 | B117: 1816 | C117: 1 | D117: 0.23817 | E117: 0.06867 | F117: 73.7 | G117: 73.7
A118: 1303 | B118: 1833 | C118: 1 | D118: 0.27781 | E118: 0.08009 | F118: 73.7 | G118: 73.7
A119: 1303 | B119: 12220 | C119: 1 | D119: 0.25217 | E119: 0.07275 | F119: 73.7 | G119: 73.7
A120: 1304 | B120: 1321 | C120: 1 | D120: 0.16163 | E120: 0.04663 | F120: 83.8 | G120: 83.8
A121: 1304 | B121: 1329 | C121: 1 | D121: 0.02383 | E121: 0.00688 | F121: 83.8 | G121: 83.8
A122: 1304 | B122: 1372 | C122: 1 | D122: 0.32263 | E122: 0.09306 | F122: 83.8 | G122: 83.8
A123: 1305 | B123: 1325 | C123: 1 | D123: 0.39603 | E123: 0.11422 | F123: 83.8 | G123: 83.8
A124: 1305 | B124: 1327 | C124: 1 | D124: 0.46148 | E124: 0.13308 | F124: 83.8 | G124: 83.8
A125: 1306 | B125: 1338 | C125: 1 | D125: 0.03475 | E125: 0.01003 | F125: 73.7 | G125: 73.7
A126: 1306 | B126: 1374 | C126: 1 | D126: 0.07427 | E126: 0.02143 | F126: 73.7 | G126: 73.7
A127: 1306 | B127: 1828 | C127: 1 | D127: 0.04024 | E127: 0.0129 | F127: 73.7 | G127: 73.7
A128: 1308 | B128: 1310 | C128: 1 | D128: 0.44886 | E128: 0.35749 | F128: 35.4 | G128: 35.4
A129: 1308 | B129: 1312 | C129: 1 | D129: 0.19558 | E129: 0.15582 | F129: 35.4 | G129: 35.4
A130: 1309 | B130: 1336 | C130: 1 | D130: 0.06751 | E130: 0.01948 | F130: 73.7 | G130: 73.7
A131: 1309 | B131: 1835 | C131: 1 | D131: 0.1883 | E131: 0.05445 | F131: 73.7 | G131: 73.7
A132: 1314 | B132: 1339 | C132: 1 | D132: 0.04188 | E132: 0.01538 | F132: 70.5 | G132: 70.5
A133: 1314 | B133: 1374 | C133: 1 | D133: 0.1388 | E133: 0.04005 | F133: 73.7 | G133: 73.7
A134: 1314 | B134: 1813 | C134: 1 | D134: 0.0139 | E134: 0.00401 | F134: 83.8 | G134: 83.8
A135: 1315 | B135: 1318 | C135: 1 | D135: 0.28393 | E135: 0.08191 | F135: 83.8 | G135: 83.8
A136: 1315 | B136: 1810 | C136: 1 | D136: 0.32559 | E136: 0.09392 | F136: 83.8 | G136: 83.8
A137: 1315 | B137: 1833 | C137: 1 | D137: 0.28177 | E137: 0.08123 | F137: 73.7 | G137: 73.7
A138: 1318 | B138: 1329 | C138: 1 | D138: 0.14198 | E138: 0.04096 | F138: 83.8 | G138: 83.8
A139: 1321 | B139: 1322 | C139: 1 | D139: 0.05947 | E139: 0.01716 | F139: 83.8 | G139: 83.8
A140: 1322 | B140: 1813 | C140: 2 | D140: 0.05987 | E140: 0.01727 | F140: 83.8 | G140: 83.8
A141: 1324 | B141: 1372 | C141: 1 | D141: 0.23431 | E141: 0.0676 | F141: 83.8 | G141: 83.8
A142: 1327 | B142: 1388 | C142: 1 | D142: 0.44715 | E142: 0.1433 | F142: 83.8 | G142: 83.8
A143: 1336 | B143: 1337 | C143: 1 | D143: 0.04293 | E143: 0.01376 | F143: 73.7 | G143: 73.7
A144: 1336 | B144: 1338 | C144: 1 | D144: 0.08737 | E144: 0.02521 | F144: 73.7 | G144: 73.7
A145: 1403 | B145: 1416 | C145: 1 | D145: 0.25117 | E145: 0.07246 | F145: 83.8 | G145: 83.8
A146: 1406 | B146: 1411 | C146: 1 | D146: 0.72788 | E146: 0.57905 | F146: 35.4 | G146: 35.4
A147: 1406 | B147: 1439 | C147: 1 | D147: 0.27202 | E147: 0.07847 | F147: 83.8 | G147: 83.8
A148: 50050 | B148: 51450 | C148: 10 | D148: 0.132077 | E148: 0.017436 | F148: 345 | G148: 345
A149: 51450 | B149: 54000 | C149: 10 | D149: 0.036028 | E149: 0.004784 | F149: 345 | G149: 345
A150: 1846 | B150: 1308 | C150: 1 | D150: 0.162275 | E150: 0.051734 | F150: 58.6 | G150: 58.6
A151: 1846 | B151: 1372 | C151: 1 | D151: 0.219406 | E151: 0.069948 | F151: 58.6 | G151: 58.6
A152: 6011 | B152: 6182 | C152: 6C | D152: 0.08075 | E152: 0.01568 | F152: 280 | G152: 280
A153: 6008 | B153: 6550 | C153: 6A | D153: 0.098234 | E153: 0.017336 | F153: 247 | G153: 247
A154: 6550 | B154: 6182 | C154: 6B | D154: 0.007888 | E154: 0.001392 | F154: 247 | G154: 247
A155: 1306 | B155: 1869 | C155: 1 | D155: 0.11716 | E155: 0.033803 | F155: 66.7 | G155: 66.7
A156: 1869 | B156: 1857 | C156: 1 | D156: 0.041701 | E156: 0.012031 | F156: 66.7 | G156: 66.7
A157: 1119 | B157: 1841 | C157: 1 | D157: 0.03292 | E157: 0.00397 | F157: 438.2 | G157: 438.2
A158: 1841 | B158: 1832 | C158: 1 | D158: 0.08806 | E158: 0.01061 | F158: 438.2 | G158: 438.2
A159: 1842 | B159: 1821 | C159: 1 | D159: 0.036389 | E159: 0.010152 | F159: 147.5 | G159: 147.5
A160: 1822 | B160: 1842 | C160: 1 | D160: 0.065651 | E160: 0.018315 | F160: 147.5 | G160: 147.5
A161: 1528 | B161: 1841 | C161: 1 | D161: 0.3518 | E161: 0 | F161: 51 | G161: 51
A162: 1841 | B162: 1842 | C162: 1 | D162: 0.1238 | E162: 0 | F162: 150 | G162: 150
A163: 1842 | B163: 1528 | C163: 1 | D163: 0.2087 | E163: 0 | F163: 51 | G163: 51
A164: 12305 | B164: 12285 | C164: 1 | D164: 0.199853 | E164: 0.052216 | F164: 94.4 | G164: 94.4
A165: 12305 | B165: 12177 | C165: 1 | D165: 0.077459 | E165: 0.020144 | F165: 94.4 | G165: 94.4
A166: 1223 | B166: 1166 | C166: 1 | D166: 0.103077 | E166: 0 | F166: 78 | G166: 78
A167: 1140 | B167: 1166 | C167: 1 | D167: 0.008106 | E167: 0.001404 | F167: 438.2 | G167: 438.2
A168: 6003 | B168: 6713 | C168: 2A | D168: 0.031392 | E168: 0.00352 | F168: 275 | G168: 275
A169: 6713 | B169: 6460 | C169: 2A | D169: 0.08969 | E169: 0.01005 | F169: 275 | G169: 275
A170: 4419 | B170: 4401 | C170: 1 | D170: 0.00435 | E170: 0.00062 | F170: 414 | G170: 414
A171: 4402 | B171: 4419 | C171: 1 | D171: 0.04204 | E171: 0.0072 | F171: 225 | G171: 225
A172: 6008 | B172: 6182 | C172: 51 | D172: 0.098969 | E172: 0.011241 | F172: 500 | G172: 500
A173: 6008 | B173: 6182 | C173: 52 | D173: 0.098969 | E173: 0.011241 | F173: 500 | G173: 500
A174: 6100 | B174: 6243 | C174: 2A | D174: 0.05112 | E174: 0.01071 | F174: 225 | G174: 225
A175: 6243 | B175: 6470 | C175: 2A | D175: 0.001256 | E175: 0.000262 | F175: 225 | G175: 225
A176: 1164 | B176: 1140 | C176: 1 | D176: 0.014001 | E176: 0.001758 | F176: 370.6 | G176: 370.6
A177: 1164 | B177: 1117 | C177: 1 | D177: 0.003294 | E177: 0.000418 | F177: 370.6 | G177: 370.6
A178: 14005 | B178: 1447 | C178: 1 | D178: 0.074212 | E178: 0.021412 | F178: 83.8 | G178: 83.8
A179: 14005 | B179: 1449 | C179: 1 | D179: 0.122232 | E179: 0.035266 | F179: 83.8 | G179: 83.8
A180: 4342 | B180: 4386 | C180: 1 | D180: 0.06084 | E180: 0.01361 | F180: 133.9 | G180: 133.9
A181: 1840 | B181: 1845 | C181: 1 | D181: 0.031267 | E181: 0.005059 | F181: 482 | G181: 482
A182: 58150 | B182: 58500 | C182: 1 | D182: 0.00475 | E182: 0.000521 | F182: 573 | G182: 573
A183: 6005 | B183: 6001 | C183: 47 | D183: 0.03354 | E183: 0.00409 | F183: 500 | G183: 500
A184: 6005 | B184: 6001 | C184: 48 | D184: 0.03354 | E184: 0.00409 | F184: 500 | G184: 500
A185: 4402 | B185: 4415 | C185: 1 | D185: 0.001436 | E185: 0.000222 | F185: 60 | G185: 60
A186: 4319 | B186: 4361 | C186: 1 | D186: 0.019851 | E186: 0.004235 | F186: 133.9 | G186: 133.9
A187: 4336 | B187: 4361 | C187: 1 | D187: 0.029039 | E187: 0.006195 | F187: 133.9 | G187: 133.9
A188: 6005 | B188: 6008 | C188: 49 | D188: 0.13752 | E188: 0.01664 | F188: 500 | G188: 500
A189: 6005 | B189: 6008 | C189: 50 | D189: 0.13752 | E189: 0.01664 | F189: 500 | G189: 500
A190: 6008 | B190: 6753 | C190: 41 | D190: 0.087308 | E190: 0.017216 | F190: 382.4 | G190: 382.4
A191: 6008 | B191: 6753 | C191: 42 | D191: 0.08764 | E191: 0.018758 | F191: 382.4 | G191: 382.4
A192: 6753 | B192: 6755 | C192: 43 | D192: 0.022043 | E192: 0.004448 | F192: 382.4 | G192: 382.4
A193: 6753 | B193: 6755 | C193: 44 | D193: 0.022008 | E193: 0.004573 | F193: 382.4 | G193: 382.4
A194: 4331 | B194: 4354 | C194: 1 | D194: 0.0708 | E194: 0.01531 | F194: 133.9 | G194: 133.9
A195: 4336 | B195: 4354 | C195: 1 | D195: 0.18245 | E195: 0.03945 | F195: 133.9 | G195: 133.9
A196: 1407 | B196: 1424 | C196: 1 | D196: 0.41782 | E196: 0.12049 | F196: 73.7 | G196: 73.7
A197: 1407 | B197: 1431 | C197: 1 | D197: 0.32526 | E197: 0.10311 | F197: 73.7 | G197: 73.7
A198: 1407 | B198: 1432 | C198: 1 | D198: 0.77629 | E198: 0.2236 | F198: 73.7 | G198: 73.7
A199: 1408 | B199: 1414 | C199: 1 | D199: 0.09531 | E199: 0.0275 | F199: 83.8 | G199: 83.8
A200: 1408 | B200: 1667 | C200: 1 | D200: 0.0025 | E200: 0.0008 | F200: 83.8 | G200: 83.8
... 634 more rows

Sheet g_m
A1: Nodo | B1: Generacion | C1: Demanda
A2: 1101 | B2: =Hoja4!E2 -> 208.32 | C2: =Hoja4!J2 -> 0
A3: 1102 | B3: =Hoja4!E3 -> 22.87 | C3: =Hoja4!J3 -> 35.031
A4: 1103 | B4: =Hoja4!E4 -> 0 | C4: =Hoja4!J4 -> 0
A5: 1105 | B5: =Hoja4!E5 -> 0 | C5: =Hoja4!J5 -> 0
A6: 1106 | B6: =Hoja4!E6 -> 0 | C6: =Hoja4!J6 -> 29.522
A7: 1107 | B7: =Hoja4!E7 -> 0 | C7: =Hoja4!J7 -> 106.915
A8: 1108 | B8: =Hoja4!E8 -> 0 | C8: =Hoja4!J8 -> 122.561
A9: 1109 | B9: =Hoja4!E9 -> 0 | C9: =Hoja4!J9 -> 162.455
A10: 1110 | B10: =Hoja4!E10 -> 0 | C10: =Hoja4!J10 -> 0
A11: 1111 | B11: =Hoja4!E11 -> 0 | C11: =Hoja4!J11 -> 0
A12: 1113 | B12: =Hoja4!E12 -> 0 | C12: =Hoja4!J12 -> 0
A13: 1114 | B13: =Hoja4!E13 -> 0 | C13: =Hoja4!J13 -> 0
A14: 1115 | B14: =Hoja4!E14 -> 0 | C14: =Hoja4!J14 -> 0
A15: 1117 | B15: =Hoja4!E15 -> 0 | C15: =Hoja4!J15 -> 0
A16: 1119 | B16: =Hoja4!E16 -> 0 | C16: =Hoja4!J16 -> 0
A17: 1120 | B17: =Hoja4!E17 -> 8.1431 | C17: =Hoja4!J17 -> 0
A18: 1121 | B18: =Hoja4!E18 -> 0 | C18: =Hoja4!J18 -> 0
A19: 1122 | B19: =Hoja4!E19 -> 0 | C19: =Hoja4!J19 -> 0
A20: 1124 | B20: =Hoja4!E20 -> 0 | C20: =Hoja4!J20 -> 41.093
A21: 1126 | B21: =Hoja4!E21 -> 0 | C21: =Hoja4!J21 -> 54.659
A22: 1128 | B22: =Hoja4!E22 -> 0 | C22: =Hoja4!J22 -> 0
A23: 1129 | B23: =Hoja4!E23 -> 0 | C23: =Hoja4!J23 -> 0
A24: 1131 | B24: =Hoja4!E24 -> 0 | C24: =Hoja4!J24 -> 0
A25: 1132 | B25: =Hoja4!E25 -> 0 | C25: =Hoja4!J25 -> 0
A26: 1133 | B26: =Hoja4!E26 -> 17.9537 | C26: =Hoja4!J26 -> 16.8
A27: 1140 | B27: =Hoja4!E27 -> 123.2627 | C27: =Hoja4!J27 -> 26.7
A28: 1141 | B28: =Hoja4!E28 -> 40.032 | C28: =Hoja4!J28 -> 0
A29: 1145 | B29: =Hoja4!E29 -> 39.776 | C29: =Hoja4!J29 -> 0
A30: 1151 | B30: =Hoja4!E30 -> 0 | C30: =Hoja4!J30 -> 0
A31: 1153 | B31: =Hoja4!E31 -> 0 | C31: =Hoja4!J31 -> 0
A32: 1154 | B32: =Hoja4!E32 -> 0 | C32: =Hoja4!J32 -> 0
A33: 1155 | B33: =Hoja4!E33 -> 0 | C33: =Hoja4!J33 -> 0
A34: 1159 | B34: =Hoja4!E34 -> 0 | C34: =Hoja4!J34 -> 0
A35: 1163 | B35: =Hoja4!E35 -> 0 | C35: =Hoja4!J35 -> 0
A36: 1164 | B36: =Hoja4!E36 -> 0 | C36: =Hoja4!J36 -> 0
A37: 1165 | B37: =Hoja4!E37 -> 49.568 | C37: =Hoja4!J37 -> 0
A38: 1166 | B38: =Hoja4!E38 -> 0 | C38: =Hoja4!J38 -> 0
A39: 1168 | B39: =Hoja4!E39 -> 47.957 | C39: =Hoja4!J39 -> 0
A40: 1169 | B40: =Hoja4!E40 -> 0 | C40: =Hoja4!J40 -> 0
A41: 1170 | B41: =Hoja4!E41 -> 1.3496 | C41: =Hoja4!J41 -> 0
A42: 1174 | B42: =Hoja4!E42 -> 0 | C42: =Hoja4!J42 -> 0
A43: 1204 | B43: =Hoja4!E43 -> 0 | C43: =Hoja4!J43 -> 0
A44: 1206 | B44: =Hoja4!E44 -> 0 | C44: =Hoja4!J44 -> 0
A45: 1207 | B45: =Hoja4!E45 -> 0 | C45: =Hoja4!J45 -> 0
A46: 1215 | B46: =Hoja4!E46 -> 0 | C46: =Hoja4!J46 -> 0
A47: 1216 | B47: =Hoja4!E47 -> 0 | C47: =Hoja4!J47 -> 0
A48: 1217 | B48: =Hoja4!E48 -> 0 | C48: =Hoja4!J48 -> 0
A49: 1218 | B49: =Hoja4!E49 -> 0 | C49: =Hoja4!J49 -> 0
A50: 1219 | B50: =Hoja4!E50 -> 68.571 | C50: =Hoja4!J50 -> 0
A51: 1220 | B51: =Hoja4!E51 -> 0 | C51: =Hoja4!J51 -> 0
A52: 1223 | B52: =Hoja4!E52 -> 0 | C52: =Hoja4!J52 -> 0
A53: 1240 | B53: =Hoja4!E53 -> 0 | C53: =Hoja4!J53 -> 0
A54: 1241 | B54: =Hoja4!E54 -> 0 | C54: =Hoja4!J54 -> 0
A55: 1249 | B55: =Hoja4!E55 -> 0 | C55: =Hoja4!J55 -> 0
A56: 1251 | B56: =Hoja4!E56 -> 0 | C56: =Hoja4!J56 -> 0
A57: 1301 | B57: =Hoja4!E57 -> 0 | C57: =Hoja4!J57 -> 0
A58: 1302 | B58: =Hoja4!E58 -> 0 | C58: =Hoja4!J58 -> 0
A59: 1303 | B59: =Hoja4!E59 -> 0 | C59: =Hoja4!J59 -> 0
A60: 1304 | B60: =Hoja4!E60 -> 0 | C60: =Hoja4!J60 -> 0
A61: 1305 | B61: =Hoja4!E61 -> 0 | C61: =Hoja4!J61 -> 0
A62: 1306 | B62: =Hoja4!E62 -> 0 | C62: =Hoja4!J62 -> 0
A63: 1308 | B63: =Hoja4!E63 -> 0 | C63: =Hoja4!J63 -> 0
A64: 1309 | B64: =Hoja4!E64 -> 0 | C64: =Hoja4!J64 -> 0
A65: 1310 | B65: =Hoja4!E65 -> 0 | C65: =Hoja4!J65 -> 0
A66: 1312 | B66: =Hoja4!E66 -> 0 | C66: =Hoja4!J66 -> 0
A67: 1314 | B67: =Hoja4!E67 -> 0 | C67: =Hoja4!J67 -> 0
A68: 1315 | B68: =Hoja4!E68 -> 0 | C68: =Hoja4!J68 -> 0
A69: 1318 | B69: =Hoja4!E69 -> 0 | C69: =Hoja4!J69 -> 0
A70: 1321 | B70: =Hoja4!E70 -> 0 | C70: =Hoja4!J70 -> 0
A71: 1322 | B71: =Hoja4!E71 -> 0 | C71: =Hoja4!J71 -> 0
A72: 1323 | B72: =Hoja4!E72 -> 0 | C72: =Hoja4!J72 -> 0
A73: 1324 | B73: =Hoja4!E73 -> 0 | C73: =Hoja4!J73 -> 0
A74: 1325 | B74: =Hoja4!E74 -> 0 | C74: =Hoja4!J74 -> 0
A75: 1327 | B75: =Hoja4!E75 -> 0 | C75: =Hoja4!J75 -> 0
A76: 1329 | B76: =Hoja4!E76 -> 0 | C76: =Hoja4!J76 -> 0
A77: 1331 | B77: =Hoja4!E77 -> 0 | C77: =Hoja4!J77 -> 0
A78: 1336 | B78: =Hoja4!E78 -> 0 | C78: =Hoja4!J78 -> 0
A79: 1337 | B79: =Hoja4!E79 -> 0 | C79: =Hoja4!J79 -> 0
A80: 1338 | B80: =Hoja4!E80 -> 0 | C80: =Hoja4!J80 -> 0
A81: 1339 | B81: =Hoja4!E81 -> 0 | C81: =Hoja4!J81 -> 0
A82: 1372 | B82: =Hoja4!E82 -> 0 | C82: =Hoja4!J82 -> 0
A83: 1374 | B83: =Hoja4!E83 -> 0 | C83: =Hoja4!J83 -> 0
A84: 1388 | B84: =Hoja4!E84 -> 0 | C84: =Hoja4!J84 -> 0
A85: 1403 | B85: =Hoja4!E85 -> 0 | C85: =Hoja4!J85 -> 0
A86: 1406 | B86: =Hoja4!E86 -> 0 | C86: =Hoja4!J86 -> 0
A87: 1407 | B87: =Hoja4!E87 -> 0 | C87: =Hoja4!J87 -> 0
A88: 1408 | B88: =Hoja4!E88 -> 0 | C88: =Hoja4!J88 -> 0
A89: 1409 | B89: =Hoja4!E89 -> 0 | C89: =Hoja4!J89 -> 0
A90: 1411 | B90: =Hoja4!E90 -> 0 | C90: =Hoja4!J90 -> 0
A91: 1414 | B91: =Hoja4!E91 -> 0 | C91: =Hoja4!J91 -> 0
A92: 1415 | B92: =Hoja4!E92 -> 0 | C92: =Hoja4!J92 -> 0
A93: 1416 | B93: =Hoja4!E93 -> 0 | C93: =Hoja4!J93 -> 0
A94: 1417 | B94: =Hoja4!E94 -> 0 | C94: =Hoja4!J94 -> 0
A95: 1418 | B95: =Hoja4!E95 -> 0 | C95: =Hoja4!J95 -> 0
A96: 1422 | B96: =Hoja4!E96 -> 0 | C96: =Hoja4!J96 -> 0
A97: 1423 | B97: =Hoja4!E97 -> 0 | C97: =Hoja4!J97 -> 0
A98: 1424 | B98: =Hoja4!E98 -> 0 | C98: =Hoja4!J98 -> 0
A99: 1425 | B99: =Hoja4!E99 -> 0 | C99: =Hoja4!J99 -> 0
A100: 1427 | B100: =Hoja4!E100 -> 0 | C100: =Hoja4!J100 -> 0
A101: 1428 | B101: =Hoja4!E101 -> 0 | C101: =Hoja4!J101 -> 0
A102: 1429 | B102: =Hoja4!E102 -> 0 | C102: =Hoja4!J102 -> 0
A103: 1431 | B103: =Hoja4!E103 -> 0 | C103: =Hoja4!J103 -> 0
A104: 1432 | B104: =Hoja4!E104 -> 0 | C104: =Hoja4!J104 -> 0
A105: 1433 | B105: =Hoja4!E105 -> 0 | C105: =Hoja4!J105 -> 0
A106: 1434 | B106: =Hoja4!E106 -> 0 | C106: =Hoja4!J106 -> 0
A107: 1435 | B107: =Hoja4!E107 -> 0 | C107: =Hoja4!J107 -> 0
A108: 1439 | B108: =Hoja4!E108 -> 0 | C108: =Hoja4!J108 -> 0
A109: 1442 | B109: =Hoja4!E109 -> 0 | C109: =Hoja4!J109 -> 0
A110: 1444 | B110: =Hoja4!E110 -> 33.241 | C110: =Hoja4!J110 -> 17.748
A111: 1445 | B111: =Hoja4!E111 -> 0 | C111: =Hoja4!J111 -> 0
A112: 1447 | B112: =Hoja4!E112 -> 0 | C112: =Hoja4!J112 -> 0
A113: 1449 | B113: =Hoja4!E113 -> 0 | C113: =Hoja4!J113 -> 0
A114: 1490 | B114: =Hoja4!E114 -> 0 | C114: =Hoja4!J114 -> 0
A115: 1491 | B115: =Hoja4!E115 -> 0 | C115: =Hoja4!J115 -> 0
A116: 1492 | B116: =Hoja4!E116 -> 0 | C116: =Hoja4!J116 -> 0
A117: 1493 | B117: =Hoja4!E117 -> 0 | C117: =Hoja4!J117 -> 0
A118: 1495 | B118: =Hoja4!E118 -> 0 | C118: =Hoja4!J118 -> 0
A119: 1497 | B119: =Hoja4!E119 -> 0 | C119: =Hoja4!J119 -> 0
A120: 1498 | B120: =Hoja4!E120 -> 0 | C120: =Hoja4!J120 -> 0
A121: 1499 | B121: =Hoja4!E121 -> 0 | C121: =Hoja4!J121 -> 0
A122: 1501 | B122: =Hoja4!E122 -> 0 | C122: =Hoja4!J122 -> 0
A123: 1502 | B123: =Hoja4!E123 -> 0 | C123: =Hoja4!J123 -> 0
A124: 1503 | B124: =Hoja4!E124 -> 0 | C124: =Hoja4!J124 -> 0
A125: 1504 | B125: =Hoja4!E125 -> 0 | C125: =Hoja4!J125 -> 0
A126: 1505 | B126: =Hoja4!E126 -> 0 | C126: =Hoja4!J126 -> 0
A127: 1506 | B127: =Hoja4!E127 -> 0 | C127: =Hoja4!J127 -> 0
A128: 1507 | B128: =Hoja4!E128 -> 0 | C128: =Hoja4!J128 -> 0
A129: 1509 | B129: =Hoja4!E129 -> 0 | C129: =Hoja4!J129 -> 0
A130: 1511 | B130: =Hoja4!E130 -> 0 | C130: =Hoja4!J130 -> 0
A131: 1513 | B131: =Hoja4!E131 -> 0 | C131: =Hoja4!J131 -> 0
A132: 1516 | B132: =Hoja4!E132 -> 0 | C132: =Hoja4!J132 -> 0
A133: 1518 | B133: =Hoja4!E133 -> 0 | C133: =Hoja4!J133 -> 0
A134: 1519 | B134: =Hoja4!E134 -> 0 | C134: =Hoja4!J134 -> 0
A135: 1520 | B135: =Hoja4!E135 -> 0 | C135: =Hoja4!J135 -> 0
A136: 1521 | B136: =Hoja4!E136 -> 0 | C136: =Hoja4!J136 -> 0
A137: 1522 | B137: =Hoja4!E137 -> 0 | C137: =Hoja4!J137 -> 0
A138: 1524 | B138: =Hoja4!E138 -> 0 | C138: =Hoja4!J138 -> 0
A139: 1526 | B139: =Hoja4!E139 -> 0 | C139: =Hoja4!J139 -> 0
A140: 1527 | B140: =Hoja4!E140 -> 0 | C140: =Hoja4!J140 -> 0
A141: 1528 | B141: =Hoja4!E141 -> 0 | C141: =Hoja4!J141 -> 0
A142: 1667 | B142: =Hoja4!E142 -> 0 | C142: =Hoja4!J142 -> 0
A143: 1702 | B143: =Hoja4!E143 -> 0 | C143: =Hoja4!J143 -> 0
A144: 1710 | B144: =Hoja4!E144 -> 0 | C144: =Hoja4!J144 -> 44.8752
A145: 1713 | B145: =Hoja4!E145 -> 0 | C145: =Hoja4!J145 -> 0
A146: 1714 | B146: =Hoja4!E146 -> 0 | C146: =Hoja4!J146 -> 0
A147: 1715 | B147: =Hoja4!E147 -> 0 | C147: =Hoja4!J147 -> 0
A148: 1718 | B148: =Hoja4!E148 -> 0 | C148: =Hoja4!J148 -> 0
A149: 1719 | B149: =Hoja4!E149 -> 0 | C149: =Hoja4!J149 -> 0
A150: 1730 | B150: =Hoja4!E150 -> 0 | C150: =Hoja4!J150 -> 0
A151: 1732 | B151: =Hoja4!E151 -> 0 | C151: =Hoja4!J151 -> 0
A152: 1735 | B152: =Hoja4!E152 -> 0 | C152: =Hoja4!J152 -> 0
A153: 1736 | B153: =Hoja4!E153 -> 0 | C153: =Hoja4!J153 -> 0
A154: 1755 | B154: =Hoja4!E154 -> 0 | C154: =Hoja4!J154 -> 0
A155: 1758 | B155: =Hoja4!E155 -> 0 | C155: =Hoja4!J155 -> 0
A156: 1762 | B156: =Hoja4!E156 -> 0 | C156: =Hoja4!J156 -> 0
A157: 1764 | B157: =Hoja4!E157 -> 0 | C157: =Hoja4!J157 -> 0
A158: 1771 | B158: =Hoja4!E158 -> 0 | C158: =Hoja4!J158 -> 27.6
A159: 1772 | B159: =Hoja4!E159 -> 0 | C159: =Hoja4!J159 -> 0
A160: 1795 | B160: =Hoja4!E160 -> 0 | C160: =Hoja4!J160 -> 0
A161: 1810 | B161: =Hoja4!E161 -> 0 | C161: =Hoja4!J161 -> 0
A162: 1813 | B162: =Hoja4!E162 -> 0 | C162: =Hoja4!J162 -> 0
A163: 1816 | B163: =Hoja4!E163 -> 0 | C163: =Hoja4!J163 -> 0
A164: 1820 | B164: =Hoja4!E164 -> 0 | C164: =Hoja4!J164 -> 0
A165: 1821 | B165: =Hoja4!E165 -> 0 | C165: =Hoja4!J165 -> 0
A166: 1822 | B166: =Hoja4!E166 -> 0 | C166: =Hoja4!J166 -> 0
A167: 1823 | B167: =Hoja4!E167 -> 0 | C167: =Hoja4!J167 -> 0
A168: 1828 | B168: =Hoja4!E168 -> 0 | C168: =Hoja4!J168 -> 0
A169: 1832 | B169: =Hoja4!E169 -> 0 | C169: =Hoja4!J169 -> 0
A170: 1833 | B170: =Hoja4!E170 -> 0 | C170: =Hoja4!J170 -> 0
A171: 1835 | B171: =Hoja4!E171 -> 0 | C171: =Hoja4!J171 -> 0
A172: 1840 | B172: =Hoja4!E172 -> 32.079 | C172: =Hoja4!J172 -> 0
A173: 1841 | B173: =Hoja4!E173 -> 0 | C173: =Hoja4!J173 -> 0
A174: 1842 | B174: =Hoja4!E174 -> 0 | C174: =Hoja4!J174 -> 0
A175: 1845 | B175: =Hoja4!E175 -> 0 | C175: =Hoja4!J175 -> 0
A176: 1846 | B176: =Hoja4!E176 -> 0 | C176: =Hoja4!J176 -> 0
A177: 1857 | B177: =Hoja4!E177 -> 0 | C177: =Hoja4!J177 -> 0
A178: 1862 | B178: =Hoja4!E178 -> 0 | C178: =Hoja4!J178 -> 0
A179: 1863 | B179: =Hoja4!E179 -> 0 | C179: =Hoja4!J179 -> 0
A180: 1869 | B180: =Hoja4!E180 -> 0 | C180: =Hoja4!J180 -> 0
A181: 1908 | B181: =Hoja4!E181 -> 0 | C181: =Hoja4!J181 -> 0
A182: 3029 | B182: =Hoja4!E182 -> 3.883 | C182: =Hoja4!J182 -> 34.0642
A183: 3030 | B183: =Hoja4!E183 -> 0 | C183: =Hoja4!J183 -> 31.4686
A184: 3031 | B184: =Hoja4!E184 -> 0 | C184: =Hoja4!J184 -> 17.0187
A185: 3032 | B185: =Hoja4!E185 -> 88.9786 | C185: =Hoja4!J185 -> 1.6055
A186: 3033 | B186: =Hoja4!E186 -> 0 | C186: =Hoja4!J186 -> 14.9315
A187: 3034 | B187: =Hoja4!E187 -> 99.338 | C187: =Hoja4!J187 -> 29.1406
A188: 3036 | B188: =Hoja4!E188 -> 0 | C188: =Hoja4!J188 -> 0
A189: 3037 | B189: =Hoja4!E189 -> 0 | C189: =Hoja4!J189 -> 51.0562
A190: 3038 | B190: =Hoja4!E190 -> 23.728 | C190: =Hoja4!J190 -> 19.6184
A191: 3040 | B191: =Hoja4!E191 -> 0 | C191: =Hoja4!J191 -> 9.4727
A192: 3045 | B192: =Hoja4!E192 -> 0 | C192: =Hoja4!J192 -> 29.0603
A193: 3049 | B193: =Hoja4!E193 -> 0 | C193: =Hoja4!J193 -> 25.6887
A194: 3052 | B194: =Hoja4!E194 -> 0 | C194: =Hoja4!J194 -> 41.7441
A195: 3055 | B195: =Hoja4!E195 -> 6.451 | C195: =Hoja4!J195 -> 56.1492
A196: 3059 | B196: =Hoja4!E196 -> 0 | C196: =Hoja4!J196 -> 0
A197: 3060 | B197: =Hoja4!E197 -> 3.969 | C197: =Hoja4!J197 -> 30.0236
A198: 3064 | B198: =Hoja4!E198 -> 0 | C198: =Hoja4!J198 -> 2.848
A199: 3075 | B199: =Hoja4!E199 -> 0 | C199: =Hoja4!J199 -> 13.0049
A200: 3077 | B200: =Hoja4!E200 -> 0 | C200: =Hoja4!J200 -> 31.1475
... 357 more rows

Sheet Hoja4
A1: Nodo | B1: IEP I | C1: TCP I | D1: TOP I | G1: IEP R | H1: TOP R | I1: TCP R | L1: IEP I | N1: TCP I | P1: top i | R1: IEP R | T1: TOP R | V1: TCP R
A2: 1101 | B2: =IFERROR(VLOOKUP(A2,L:M,2,0),0) -> 208.32 | C2: =IFERROR(VLOOKUP(A2,N:O,2,0),0) -> 0 | D2: =IFERROR(VLOOKUP(A2,P:Q,2,0),0) -> 0 | E2: =B2-C2-D2 -> 208.32 | F2: =SUM(E:E) -> 4629.0648 | G2: =IFERROR(VLOOKUP(A2,R:S,2,0),0) -> 0 | H2: =IFERROR(VLOOKUP(A2,V:W,2,0),0) -> 0 | I2: =IFERROR(VLOOKUP(A2,T:U,2,0),0) -> 0 | J2: =G2-H2-I2 -> 0 | K2: =SUM(J2:J557) -> 4569.3614 | L2: 1101 | M2: 208.32 | N2: 1124 | O2: 35 | P2: 1124 | Q2: 0 | R2: 1102 | S2: 35.031 | T2: 1124 | U2: 0 | V2: 1124 | W2: 15
A3: 1102 | B3: 22.87 | C3: 0 | D3: 0 | E3: 22.87 | F3: =F2-K2 -> 59.7034 | G3: 35.031 | H3: 0 | I3: 0 | J3: 35.031 | L3: 1102 | M3: 22.87 | N3: 1126 | O3: 0 | P3: 1126 | Q3: 0 | R3: 1106 | S3: 29.522 | T3: 3034 | U3: 0 | V3: 1126 | W3: =10-2.121 -> 7.879
A4: 1103 | B4: 0 | C4: 0 | D4: 0 | E4: 0 | G4: 0 | H4: 0 | I4: 0 | J4: 0 | L4: 1106 | M4: 0 | N4: 1710 | O4: 22.91 | P4: 1710 | Q4: 0 | R4: 1107 | S4: 106.915 | T4: 4402 | U4: 0 | V4: 1710 | W4: 0
A5: 1105 | B5: 0 | C5: 0 | D5: 0 | E5: 0 | G5: 0 | H5: 0 | I5: 0 | J5: 0 | L5: 1107 | M5: 0 | N5: 6005 | O5: 12 | P5: 4402 | Q5: 0 | R5: 1108 | S5: 122.561 | T5: 4403 | U5: 16.066 | V5: 3183 | W5: 5.91
A6: 1106 | B6: 0 | C6: 0 | D6: 0 | E6: 0 | G6: 29.522 | H6: 0 | I6: 0 | J6: 29.522 | L6: 1108 | M6: 0 | N6: 6008 | O6: 37 | P6: 6003 | Q6: 0 | R6: 1109 | S6: 162.455 | T6: 6096 | U6: 0 | V6: 4403 | W6: 35
A7: 1107 | B7: 0 | C7: 0 | D7: 0 | E7: 0 | G7: 106.915 | H7: 0 | I7: 0 | J7: 106.915 | L7: 1109 | M7: 0 | N7: 6018 | O7: 8.35 | P7: 6018 | Q7: 0 | R7: 1120 | S7: 0 | T7: 27131 | U7: 0 | V7: 4750 | W7: 49
A8: 1108 | B8: 0 | C8: 0 | D8: 0 | E8: 0 | G8: 122.561 | H8: 0 | I8: 0 | J8: 122.561 | L8: 1120 | M8: 8.1431 | N8: 6100 | O8: 3.25 | P8: 6059 | Q8: 0 | R8: 1124 | S8: 56.093 | T8: 27161 | U8: 0 | V8: 6018 | W8: 0
A9: 1109 | B9: 0 | C9: 0 | D9: 0 | E9: 0 | G9: 162.455 | H9: 0 | I9: 0 | J9: 162.455 | L9: 1124 | M9: 35 | N9: 27161 | O9: 0 | P9: 6100 | Q9: 20.937 | R9: 1126 | S9: 62.538 | T9: 27211 | U9: 0 | V9: 6100 | W9: 0
A10: 1110 | B10: 0 | C10: 0 | D10: 0 | E10: 0 | G10: 0 | H10: 0 | I10: 0 | J10: 0 | L10: 1126 | M10: 0 | N10: 27301 | O10: 0 | P10: 6171 | Q10: 0 | R10: 1133 | S10: 16.8 | T10: 28161 | U10: 0 | V10: 27161 | W10: 17
A11: 1111 | B11: 0 | C11: 0 | D11: 0 | E11: 0 | G11: 0 | H11: 0 | I11: 0 | J11: 0 | L11: 1133 | M11: 17.9537 | N11: 27461 | O11: 0 | P11: 6173 | Q11: 0 | R11: 1140 | S11: 26.7 | T11: 28181 | U11: 0 | V11: 27301 | W11: 0
A12: 1113 | B12: 0 | C12: 0 | D12: 0 | E12: 0 | G12: 0 | H12: 0 | I12: 0 | J12: 0 | L12: 1140 | M12: 123.2627 | P12: 6290 | Q12: 0 | R12: 1145 | S12: 0 | V12: 27461 | W12: 0
A13: 1114 | B13: 0 | C13: 0 | D13: 0 | E13: 0 | G13: 0 | H13: 0 | I13: 0 | J13: 0 | L13: 1141 | M13: 40.032 | P13: 27131 | Q13: 0 | R13: 1165 | S13: 0
A14: 1115 | B14: 0 | C14: 0 | D14: 0 | E14: 0 | G14: 0 | H14: 0 | I14: 0 | J14: 0 | L14: 1145 | M14: 39.776 | P14: 27161 | Q14: 0 | R14: 1166 | S14: 0
A15: 1117 | B15: 0 | C15: 0 | D15: 0 | E15: 0 | G15: 0 | H15: 0 | I15: 0 | J15: 0 | L15: 1165 | M15: 49.568 | P15: 27301 | Q15: 0 | R15: 1168 | S15: 0
A16: 1119 | B16: 0 | C16: 0 | D16: 0 | E16: 0 | G16: 0 | H16: 0 | I16: 0 | J16: 0 | L16: 1166 | M16: 0 | P16: 27461 | Q16: 0 | R16: 1219 | S16: 0
A17: 1120 | B17: 8.1431 | C17: 0 | D17: 0 | E17: 8.1431 | G17: 0 | H17: 0 | I17: 0 | J17: 0 | L17: 1168 | M17: 47.957 | P17: 28161 | Q17: 0 | R17: 1444 | S17: 17.748
A18: 1121 | B18: 0 | C18: 0 | D18: 0 | E18: 0 | G18: 0 | H18: 0 | I18: 0 | J18: 0 | L18: 1170 | M18: 1.3496 | P18: 28181 | Q18: 0 | R18: 1710 | S18: 44.8752
A19: 1122 | B19: 0 | C19: 0 | D19: 0 | E19: 0 | G19: 0 | H19: 0 | I19: 0 | J19: 0 | L19: 1219 | M19: 68.571 | P19: 50350 | Q19: 0 | R19: 1771 | S19: 27.6
A20: 1124 | B20: 35 | C20: 35 | D20: 0 | E20: 0 | G20: 56.093 | H20: 15 | I20: 0 | J20: 41.093 | L20: 1444 | M20: 33.241 | P20: 50900 | Q20: 0 | R20: 1840 | S20: 0
A21: 1126 | B21: 0 | C21: 0 | D21: 0 | E21: 0 | G21: 62.538 | H21: 7.879 | I21: 0 | J21: 54.659 | L21: 1710 | M21: 22.91 | P21: 58200 | Q21: 0 | R21: 3029 | S21: 34.0642
A22: 1128 | B22: 0 | C22: 0 | D22: 0 | E22: 0 | G22: 0 | H22: 0 | I22: 0 | J22: 0 | L22: 1771 | M22: 0 | R22: 3030 | S22: 31.4686
A23: 1129 | B23: 0 | C23: 0 | D23: 0 | E23: 0 | G23: 0 | H23: 0 | I23: 0 | J23: 0 | L23: 1840 | M23: 32.079 | R23: 3031 | S23: 17.0187
A24: 1131 | B24: 0 | C24: 0 | D24: 0 | E24: 0 | G24: 0 | H24: 0 | I24: 0 | J24: 0 | L24: 1845 | M24: 0 | R24: 3032 | S24: 1.6055
A25: 1132 | B25: 0 | C25: 0 | D25: 0 | E25: 0 | G25: 0 | H25: 0 | I25: 0 | J25: 0 | L25: 3029 | M25: 3.883 | R25: 3033 | S25: 14.9315
A26: 1133 | B26: 17.9537 | C26: 0 | D26: 0 | E26: 17.9537 | G26: 16.8 | H26: 0 | I26: 0 | J26: 16.8 | L26: 3032 | M26: 88.9786 | R26: 3034 | S26: 29.1406
A27: 1140 | B27: 123.2627 | C27: 0 | D27: 0 | E27: 123.2627 | G27: 26.7 | H27: 0 | I27: 0 | J27: 26.7 | L27: 3034 | M27: 99.338 | R27: 3036 | S27: 0
A28: 1141 | B28: 40.032 | C28: 0 | D28: 0 | E28: 40.032 | G28: 0 | H28: 0 | I28: 0 | J28: 0 | L28: 3038 | M28: 23.728 | R28: 3037 | S28: 51.0562
A29: 1145 | B29: 39.776 | C29: 0 | D29: 0 | E29: 39.776 | G29: 0 | H29: 0 | I29: 0 | J29: 0 | L29: 3049 | M29: 0 | R29: 3038 | S29: 19.6184
A30: 1151 | B30: 0 | C30: 0 | D30: 0 | E30: 0 | G30: 0 | H30: 0 | I30: 0 | J30: 0 | L30: 3055 | M30: 6.451 | R30: 3040 | S30: 9.4727
A31: 1153 | B31: 0 | C31: 0 | D31: 0 | E31: 0 | G31: 0 | H31: 0 | I31: 0 | J31: 0 | L31: 3059 | M31: 0 | R31: 3045 | S31: 29.0603
A32: 1154 | B32: 0 | C32: 0 | D32: 0 | E32: 0 | G32: 0 | H32: 0 | I32: 0 | J32: 0 | L32: 3060 | M32: 3.969 | R32: 3049 | S32: 25.6887
A33: 1155 | B33: 0 | C33: 0 | D33: 0 | E33: 0 | G33: 0 | H33: 0 | I33: 0 | J33: 0 | L33: 3078 | M33: 0 | R33: 3052 | S33: 41.7441
A34: 1159 | B34: 0 | C34: 0 | D34: 0 | E34: 0 | G34: 0 | H34: 0 | I34: 0 | J34: 0 | L34: 3082 | M34: 5.925 | R34: 3055 | S34: 56.1492
A35: 1163 | B35: 0 | C35: 0 | D35: 0 | E35: 0 | G35: 0 | H35: 0 | I35: 0 | J35: 0 | L35: 3098 | M35: 20 | R35: 3060 | S35: 30.0236
A36: 1164 | B36: 0 | C36: 0 | D36: 0 | E36: 0 | G36: 0 | H36: 0 | I36: 0 | J36: 0 | L36: 3100 | M36: 3.595 | R36: 3064 | S36: 2.848
A37: 1165 | B37: 49.568 | C37: 0 | D37: 0 | E37: 49.568 | G37: 0 | H37: 0 | I37: 0 | J37: 0 | L37: 3101 | M37: 9.57 | R37: 3075 | S37: 13.0049
A38: 1166 | B38: 0 | C38: 0 | D38: 0 | E38: 0 | G38: 0 | H38: 0 | I38: 0 | J38: 0 | L38: 3123 | M38: 10.115 | R38: 3077 | S38: 31.1475
A39: 1168 | B39: 47.957 | C39: 0 | D39: 0 | E39: 47.957 | G39: 0 | H39: 0 | I39: 0 | J39: 0 | L39: 3180 | M39: 0.144 | R39: 3078 | S39: 52.5012
A40: 1169 | B40: 0 | C40: 0 | D40: 0 | E40: 0 | G40: 0 | H40: 0 | I40: 0 | J40: 0 | L40: 3183 | M40: 6.783 | R40: 3082 | S40: 7.2249
A41: 1170 | B41: 1.3496 | C41: 0 | D41: 0 | E41: 1.3496 | G41: 0 | H41: 0 | I41: 0 | J41: 0 | L41: 3203 | M41: 10.115 | R41: 3085 | S41: 25.3676
A42: 1174 | B42: 0 | C42: 0 | D42: 0 | E42: 0 | G42: 0 | H42: 0 | I42: 0 | J42: 0 | L42: 3204 | M42: 227 | R42: 3091 | S42: 8.991
A43: 1204 | B43: 0 | C43: 0 | D43: 0 | E43: 0 | G43: 0 | H43: 0 | I43: 0 | J43: 0 | L43: 3211 | M43: 0 | R43: 3095 | S43: 24.7254
A44: 1206 | B44: 0 | C44: 0 | D44: 0 | E44: 0 | G44: 0 | H44: 0 | I44: 0 | J44: 0 | L44: 3213 | M44: 70 | R44: 3100 | S44: 23.4409
A45: 1207 | B45: 0 | C45: 0 | D45: 0 | E45: 0 | G45: 0 | H45: 0 | I45: 0 | J45: 0 | L45: 3219 | M45: 30 | R45: 3101 | S45: 53.1434
A46: 1215 | B46: 0 | C46: 0 | D46: 0 | E46: 0 | G46: 0 | H46: 0 | I46: 0 | J46: 0 | L46: 3301 | M46: 240 | R46: 3103 | S46: 12.0416
A47: 1216 | B47: 0 | C47: 0 | D47: 0 | E47: 0 | G47: 0 | H47: 0 | I47: 0 | J47: 0 | L47: 3424 | M47: 0 | R47: 3108 | S47: 14.6104
A48: 1217 | B48: 0 | C48: 0 | D48: 0 | E48: 0 | G48: 0 | H48: 0 | I48: 0 | J48: 0 | L48: 3544 | M48: 11 | R48: 3113 | S48: 15.8949
A49: 1218 | B49: 0 | C49: 0 | D49: 0 | E49: 0 | G49: 0 | H49: 0 | I49: 0 | J49: 0 | L49: 3550 | M49: 28 | R49: 3118 | S49: 7.4415
A50: 1219 | B50: 68.571 | C50: 0 | D50: 0 | E50: 68.571 | G50: 0 | H50: 0 | I50: 0 | J50: 0 | L50: 3553 | M50: 14 | R50: 3122 | S50: 11.5599
A51: 1220 | B51: 0 | C51: 0 | D51: 0 | E51: 0 | G51: 0 | H51: 0 | I51: 0 | J51: 0 | L51: 3592 | M51: 0 | R51: 3123 | S51: 43.6707
A52: 1223 | B52: 0 | C52: 0 | D52: 0 | E52: 0 | G52: 0 | H52: 0 | I52: 0 | J52: 0 | L52: 4300 | M52: 0 | R52: 3131 | S52: 7.2249
A53: 1240 | B53: 0 | C53: 0 | D53: 0 | E53: 0 | G53: 0 | H53: 0 | I53: 0 | J53: 0 | L53: 4307 | M53: 10.83 | R53: 3155 | S53: 20.7115
A54: 1241 | B54: 0 | C54: 0 | D54: 0 | E54: 0 | G54: 0 | H54: 0 | I54: 0 | J54: 0 | L54: 4315 | M54: 0 | R54: 3160 | S54: 14.9315
A55: 1249 | B55: 0 | C55: 0 | D55: 0 | E55: 0 | G55: 0 | H55: 0 | I55: 0 | J55: 0 | L55: 4316 | M55: 52.822 | R55: 3179 | S55: 8.5094
A56: 1251 | B56: 0 | C56: 0 | D56: 0 | E56: 0 | G56: 0 | H56: 0 | I56: 0 | J56: 0 | L56: 4317 | M56: 0 | R56: 3180 | S56: 12.2021
A57: 1301 | B57: 0 | C57: 0 | D57: 0 | E57: 0 | G57: 0 | H57: 0 | I57: 0 | J57: 0 | L57: 4319 | M57: 0 | R57: 3183 | S57: 18.0855
A58: 1302 | B58: 0 | C58: 0 | D58: 0 | E58: 0 | G58: 0 | H58: 0 | I58: 0 | J58: 0 | L58: 4328 | M58: 22.8 | R58: 3310 | S58: 7.546
A59: 1303 | B59: 0 | C59: 0 | D59: 0 | E59: 0 | G59: 0 | H59: 0 | I59: 0 | J59: 0 | L59: 4329 | M59: 0 | R59: 3408 | S59: 17.3399
A60: 1304 | B60: 0 | C60: 0 | D60: 0 | E60: 0 | G60: 0 | H60: 0 | I60: 0 | J60: 0 | L60: 4330 | M60: 25.65 | R60: 3424 | S60: 33.7164
A61: 1305 | B61: 0 | C61: 0 | D61: 0 | E61: 0 | G61: 0 | H61: 0 | I61: 0 | J61: 0 | L61: 4331 | M61: 15.85 | R61: 3553 | S61: 29.1406
A62: 1306 | B62: 0 | C62: 0 | D62: 0 | E62: 0 | G62: 0 | H62: 0 | I62: 0 | J62: 0 | L62: 4336 | M62: 32.279 | R62: 4300 | S62: 24.01
A63: 1308 | B63: 0 | C63: 0 | D63: 0 | E63: 0 | G63: 0 | H63: 0 | I63: 0 | J63: 0 | L63: 4341 | M63: 67 | R63: 4307 | S63: 5.65
A64: 1309 | B64: 0 | C64: 0 | D64: 0 | E64: 0 | G64: 0 | H64: 0 | I64: 0 | J64: 0 | L64: 4342 | M64: 0 | R64: 4315 | S64: 59.57
A65: 1310 | B65: 0 | C65: 0 | D65: 0 | E65: 0 | G65: 0 | H65: 0 | I65: 0 | J65: 0 | L65: 4402 | M65: 0 | R65: 4316 | S65: 35.002
A66: 1312 | B66: =IFERROR(VLOOKUP(A66,L:M,2,0),0) -> 0 | C66: =IFERROR(VLOOKUP(A66,N:O,2,0),0) -> 0 | D66: =IFERROR(VLOOKUP(A66,P:Q,2,0),0) -> 0 | E66: =B66-C66-D66 -> 0 | G66: =IFERROR(VLOOKUP(A66,R:S,2,0),0) -> 0 | H66: =IFERROR(VLOOKUP(A66,V:W,2,0),0) -> 0 | I66: =IFERROR(VLOOKUP(A66,T:U,2,0),0) -> 0 | J66: =G66-H66-I66 -> 0 | L66: 4403 | M66: 0 | R66: 4317 | S66: 65.2
A67: 1314 | B67: 0 | C67: 0 | D67: 0 | E67: 0 | G67: 0 | H67: 0 | I67: 0 | J67: 0 | L67: 4405 | M67: 57 | R67: 4319 | S67: 40.46
A68: 1315 | B68: 0 | C68: 0 | D68: 0 | E68: 0 | G68: 0 | H68: 0 | I68: 0 | J68: 0 | L68: 4406 | M68: 0 | R68: 4328 | S68: 1.505
A69: 1318 | B69: 0 | C69: 0 | D69: 0 | E69: 0 | G69: 0 | H69: 0 | I69: 0 | J69: 0 | L69: 4419 | M69: 23.6893 | R69: 4329 | S69: 0.11
A70: 1321 | B70: 0 | C70: 0 | D70: 0 | E70: 0 | G70: 0 | H70: 0 | I70: 0 | J70: 0 | L70: 4750 | M70: 47.3 | R70: 4330 | S70: 14.77
A71: 1322 | B71: 0 | C71: 0 | D71: 0 | E71: 0 | G71: 0 | H71: 0 | I71: 0 | J71: 0 | L71: 4800 | M71: 29.92 | R71: 4331 | S71: 51.81
A72: 1323 | B72: 0 | C72: 0 | D72: 0 | E72: 0 | G72: 0 | H72: 0 | I72: 0 | J72: 0 | L72: 4803 | M72: 35.88 | R72: 4336 | S72: 91.74
A73: 1324 | B73: 0 | C73: 0 | D73: 0 | E73: 0 | G73: 0 | H73: 0 | I73: 0 | J73: 0 | L73: 6003 | M73: 243.0521 | R73: 4341 | S73: 6.193
A74: 1325 | B74: 0 | C74: 0 | D74: 0 | E74: 0 | G74: 0 | H74: 0 | I74: 0 | J74: 0 | L74: 6005 | M74: 154.46 | R74: 4342 | S74: 5.51
A75: 1327 | B75: 0 | C75: 0 | D75: 0 | E75: 0 | G75: 0 | H75: 0 | I75: 0 | J75: 0 | L75: 6008 | M75: 194.31 | R75: 4357 | S75: 11.32
A76: 1329 | B76: 0 | C76: 0 | D76: 0 | E76: 0 | G76: 0 | H76: 0 | I76: 0 | J76: 0 | L76: 6009 | M76: 4.862 | R76: 4402 | S76: 1.62
A77: 1331 | B77: 0 | C77: 0 | D77: 0 | E77: 0 | G77: 0 | H77: 0 | I77: 0 | J77: 0 | L77: 6010 | M77: 2.8514 | R77: 4403 | S77: 51.066
A78: 1336 | B78: 0 | C78: 0 | D78: 0 | E78: 0 | G78: 0 | H78: 0 | I78: 0 | J78: 0 | L78: 6011 | M78: 0 | R78: 4405 | S78: 0.57
A79: 1337 | B79: 0 | C79: 0 | D79: 0 | E79: 0 | G79: 0 | H79: 0 | I79: 0 | J79: 0 | L79: 6013 | M79: 8.1154 | R79: 4406 | S79: 0
A80: 1338 | B80: 0 | C80: 0 | D80: 0 | E80: 0 | G80: 0 | H80: 0 | I80: 0 | J80: 0 | L80: 6018 | M80: 10 | R80: 4419 | S80: 0.14
A81: 1339 | B81: 0 | C81: 0 | D81: 0 | E81: 0 | G81: 0 | H81: 0 | I81: 0 | J81: 0 | L81: 6059 | M81: 0 | R81: 4750 | S81: 49
A82: 1372 | B82: 0 | C82: 0 | D82: 0 | E82: 0 | G82: 0 | H82: 0 | I82: 0 | J82: 0 | L82: 6060 | M82: 0 | R82: 4800 | S82: 0.23
A83: 1374 | B83: 0 | C83: 0 | D83: 0 | E83: 0 | G83: 0 | H83: 0 | I83: 0 | J83: 0 | L83: 6088 | M83: 12.0479 | R83: 4803 | S83: 0
A84: 1388 | B84: 0 | C84: 0 | D84: 0 | E84: 0 | G84: 0 | H84: 0 | I84: 0 | J84: 0 | L84: 6092 | M84: 14.7133 | R84: 4827 | S84: 2.45
A85: 1403 | B85: 0 | C85: 0 | D85: 0 | E85: 0 | G85: 0 | H85: 0 | I85: 0 | J85: 0 | L85: 6096 | M85: 289.9659 | R85: 6002 | S85: 301.2548
A86: 1406 | B86: 0 | C86: 0 | D86: 0 | E86: 0 | G86: 0 | H86: 0 | I86: 0 | J86: 0 | L86: 6100 | M86: 24.187 | R86: 6004 | S86: 80.5909
A87: 1407 | B87: 0 | C87: 0 | D87: 0 | E87: 0 | G87: 0 | H87: 0 | I87: 0 | J87: 0 | L87: 6171 | M87: 0 | R87: 6007 | S87: 69.5295
A88: 1408 | B88: 0 | C88: 0 | D88: 0 | E88: 0 | G88: 0 | H88: 0 | I88: 0 | J88: 0 | L88: 6173 | M88: 0 | R88: 6009 | S88: 102.5211
A89: 1409 | B89: 0 | C89: 0 | D89: 0 | E89: 0 | G89: 0 | H89: 0 | I89: 0 | J89: 0 | L89: 6178 | M89: 40.6501 | R89: 6010 | S89: 7.8786
A90: 1411 | B90: 0 | C90: 0 | D90: 0 | E90: 0 | G90: 0 | H90: 0 | I90: 0 | J90: 0 | L90: 6240 | M90: 0 | R90: 6012 | S90: 5.7475
A91: 1414 | B91: 0 | C91: 0 | D91: 0 | E91: 0 | G91: 0 | H91: 0 | I91: 0 | J91: 0 | L91: 6261 | M91: 9.4 | R91: 6013 | S91: 57.2713
A92: 1415 | B92: 0 | C92: 0 | D92: 0 | E92: 0 | G92: 0 | H92: 0 | I92: 0 | J92: 0 | L92: 6263 | M92: 9.6405 | R92: 6015 | S92: 0.2958
A93: 1416 | B93: 0 | C93: 0 | D93: 0 | E93: 0 | G93: 0 | H93: 0 | I93: 0 | J93: 0 | L93: 6290 | M93: 0 | R93: 6016 | S93: 13.2422
A94: 1417 | B94: 0 | C94: 0 | D94: 0 | E94: 0 | G94: 0 | H94: 0 | I94: 0 | J94: 0 | L94: 6300 | M94: 8.2655 | R94: 6018 | S94: 134.5475
A95: 1418 | B95: 0 | C95: 0 | D95: 0 | E95: 0 | G95: 0 | H95: 0 | I95: 0 | J95: 0 | L95: 6330 | M95: 0 | R95: 6024 | S95: 33.4135
A96: 1422 | B96: 0 | C96: 0 | D96: 0 | E96: 0 | G96: 0 | H96: 0 | I96: 0 | J96: 0 | L96: 6332 | M96: 14 | R96: 6059 | S96: 85.0978
A97: 1423 | B97: 0 | C97: 0 | D97: 0 | E97: 0 | G97: 0 | H97: 0 | I97: 0 | J97: 0 | L97: 6360 | M97: 8.3673 | R97: 6100 | S97: 0.6044
A98: 1424 | B98: 0 | C98: 0 | D98: 0 | E98: 0 | G98: 0 | H98: 0 | I98: 0 | J98: 0 | L98: 6363 | M98: 11.2062 | R98: 6170 | S98: 11.1545
A99: 1425 | B99: 0 | C99: 0 | D99: 0 | E99: 0 | G99: 0 | H99: 0 | I99: 0 | J99: 0 | L99: 6366 | M99: 16.4302 | R99: 6171 | S99: 11.7397
A100: 1427 | B100: 0 | C100: 0 | D100: 0 | E100: 0 | G100: 0 | H100: 0 | I100: 0 | J100: 0 | L100: 6381 | M100: 16.3067 | R100: 6241 | S100: 24.0148
A101: 1428 | B101: 0 | C101: 0 | D101: 0 | E101: 0 | G101: 0 | H101: 0 | I101: 0 | J101: 0 | L101: 6440 | M101: 9.553 | R101: 6262 | S101: 9.3693
A102: 1429 | B102: 0 | C102: 0 | D102: 0 | E102: 0 | G102: 0 | H102: 0 | I102: 0 | J102: 0 | L102: 6460 | M102: 4.15 | R102: 6340 | S102: 17.8431
A103: 1431 | B103: 0 | C103: 0 | D103: 0 | E103: 0 | G103: 0 | H103: 0 | I103: 0 | J103: 0 | L103: 6510 | M103: 0 | R103: 6470 | S103: 25.0064
A104: 1432 | B104: 0 | C104: 0 | D104: 0 | E104: 0 | G104: 0 | H104: 0 | I104: 0 | J104: 0 | L104: 6520 | M104: 0 | R104: 6713 | S104: 16.2931
A105: 1433 | B105: 0 | C105: 0 | D105: 0 | E105: 0 | G105: 0 | H105: 0 | I105: 0 | J105: 0 | L105: 6550 | M105: 0 | R105: 27131 | S105: 12.9
A106: 1434 | B106: 0 | C106: 0 | D106: 0 | E106: 0 | G106: 0 | H106: 0 | I106: 0 | J106: 0 | L106: 27101 | M106: 84.6 | R106: 27161 | S106: 25.5
A107: 1435 | B107: 0 | C107: 0 | D107: 0 | E107: 0 | G107: 0 | H107: 0 | I107: 0 | J107: 0 | L107: 27131 | M107: 47.1 | R107: 27171 | S107: 11.2
A108: 1439 | B108: 0 | C108: 0 | D108: 0 | E108: 0 | G108: 0 | H108: 0 | I108: 0 | J108: 0 | L108: 27161 | M108: 72.8924 | R108: 27181 | S108: 8.7
A109: 1442 | B109: 0 | C109: 0 | D109: 0 | E109: 0 | G109: 0 | H109: 0 | I109: 0 | J109: 0 | L109: 27171 | M109: 69.6 | R109: 27301 | S109: 83.1
A110: 1444 | B110: 33.241 | C110: 0 | D110: 0 | E110: 33.241 | G110: 17.748 | H110: 0 | I110: 0 | J110: 17.748 | L110: 27181 | M110: 58.8 | R110: 27321 | S110: 31.5
A111: 1445 | B111: 0 | C111: 0 | D111: 0 | E111: 0 | G111: 0 | H111: 0 | I111: 0 | J111: 0 | L111: 27211 | M111: 93.4 | R111: 27341 | S111: 66.4
A112: 1447 | B112: 0 | C112: 0 | D112: 0 | E112: 0 | G112: 0 | H112: 0 | I112: 0 | J112: 0 | L112: 27281 | M112: 0 | R112: 27351 | S112: 37.3
A113: 1449 | B113: 0 | C113: 0 | D113: 0 | E113: 0 | G113: 0 | H113: 0 | I113: 0 | J113: 0 | L113: 27301 | M113: 0 | R113: 27361 | S113: 35.9
A114: 1490 | B114: 0 | C114: 0 | D114: 0 | E114: 0 | G114: 0 | H114: 0 | I114: 0 | J114: 0 | L114: 27321 | M114: 0 | R114: 27371 | S114: 62.6
A115: 1491 | B115: 0 | C115: 0 | D115: 0 | E115: 0 | G115: 0 | H115: 0 | I115: 0 | J115: 0 | L115: 27341 | M115: 52.4 | R115: 27381 | S115: 10
A116: 1492 | B116: 0 | C116: 0 | D116: 0 | E116: 0 | G116: 0 | H116: 0 | I116: 0 | J116: 0 | L116: 27351 | M116: 11.1 | R116: 27401 | S116: 15.3
A117: 1493 | B117: 0 | C117: 0 | D117: 0 | E117: 0 | G117: 0 | H117: 0 | I117: 0 | J117: 0 | L117: 27361 | M117: 0 | R117: 27411 | S117: 12.9
A118: 1495 | B118: 0 | C118: 0 | D118: 0 | E118: 0 | G118: 0 | H118: 0 | I118: 0 | J118: 0 | L118: 27371 | M118: 0 | R118: 27441 | S118: 73.3
A119: 1497 | B119: 0 | C119: 0 | D119: 0 | E119: 0 | G119: 0 | H119: 0 | I119: 0 | J119: 0 | L119: 27381 | M119: 0 | R119: 27461 | S119: 48.9
A120: 1498 | B120: 0 | C120: 0 | D120: 0 | E120: 0 | G120: 0 | H120: 0 | I120: 0 | J120: 0 | L120: 27401 | M120: 0.1 | R120: 27481 | S120: 0.1
A121: 1499 | B121: 0 | C121: 0 | D121: 0 | E121: 0 | G121: 0 | H121: 0 | I121: 0 | J121: 0 | L121: 27411 | M121: 0 | R121: 27501 | S121: 14.8
A122: 1501 | B122: 0 | C122: 0 | D122: 0 | E122: 0 | G122: 0 | H122: 0 | I122: 0 | J122: 0 | L122: 27441 | M122: 0 | R122: 50000 | S122: 27.8955
A123: 1502 | B123: 0 | C123: 0 | D123: 0 | E123: 0 | G123: 0 | H123: 0 | I123: 0 | J123: 0 | L123: 27461 | M123: 0 | R123: 50050 | S123: 10.5471
A124: 1503 | B124: 0 | C124: 0 | D124: 0 | E124: 0 | G124: 0 | H124: 0 | I124: 0 | J124: 0 | L124: 27481 | M124: 47.8 | R124: 50054 | S124: 38.8369
A125: 1504 | B125: 0 | C125: 0 | D125: 0 | E125: 0 | G125: 0 | H125: 0 | I125: 0 | J125: 0 | L125: 27501 | M125: 0 | R125: 50200 | S125: 11.4342
A126: 1505 | B126: 0 | C126: 0 | D126: 0 | E126: 0 | G126: 0 | H126: 0 | I126: 0 | J126: 0 | L126: 28161 | M126: 0 | R126: 50250 | S126: 10.0542
A127: 1506 | B127: 0 | C127: 0 | D127: 0 | E127: 0 | G127: 0 | H127: 0 | I127: 0 | J127: 0 | L127: 28181 | M127: 0 | R127: 50350 | S127: 31.6412
A128: 1507 | B128: 0 | C128: 0 | D128: 0 | E128: 0 | G128: 0 | H128: 0 | I128: 0 | J128: 0 | L128: 50050 | M128: 0 | R128: 50650 | S128: 14.3913
A129: 1509 | B129: 0 | C129: 0 | D129: 0 | E129: 0 | G129: 0 | H129: 0 | I129: 0 | J129: 0 | L129: 50054 | M129: 5.4754 | R129: 50700 | S129: 1.8728
A130: 1511 | B130: =IFERROR(VLOOKUP(A130,L:M,2,0),0) -> 0 | C130: =IFERROR(VLOOKUP(A130,N:O,2,0),0) -> 0 | D130: =IFERROR(VLOOKUP(A130,P:Q,2,0),0) -> 0 | E130: =B130-C130-D130 -> 0 | G130: =IFERROR(VLOOKUP(A130,R:S,2,0),0) -> 0 | H130: =IFERROR(VLOOKUP(A130,V:W,2,0),0) -> 0 | I130: =IFERROR(VLOOKUP(A130,T:U,2,0),0) -> 0 | J130: =G130-H130-I130 -> 0 | L130: 50100 | M130: 148.359 | R130: 50750 | S130: 11.3356
A131: 1513 | B131: 0 | C131: 0 | D131: 0 | E131: 0 | G131: 0 | H131: 0 | I131: 0 | J131: 0 | L131: 50103 | M131: 22.187 | R131: 50800 | S131: 3.7457
A132: 1516 | B132: 0 | C132: 0 | D132: 0 | E132: 0 | G132: 0 | H132: 0 | I132: 0 | J132: 0 | L132: 50150 | M132: 66.553 | R132: 50900 | S132: 0
A133: 1518 | B133: 0 | C133: 0 | D133: 0 | E133: 0 | G133: 0 | H133: 0 | I133: 0 | J133: 0 | L133: 50200 | M133: 155.9791 | R133: 50950 | S133: 6.7028
A134: 1519 | B134: 0 | C134: 0 | D134: 0 | E134: 0 | G134: 0 | H134: 0 | I134: 0 | J134: 0 | L134: 50250 | M134: 136.3271 | R134: 51150 | S134: 0
A135: 1520 | B135: 0 | C135: 0 | D135: 0 | E135: 0 | G135: 0 | H135: 0 | I135: 0 | J135: 0 | L135: 50300 | M135: 35.5098 | R135: 51450 | S135: 16.5599
A136: 1521 | B136: 0 | C136: 0 | D136: 0 | E136: 0 | G136: 0 | H136: 0 | I136: 0 | J136: 0 | L136: 50350 | M136: 0 | R136: 53000 | S136: 104.5835
A137: 1522 | B137: 0 | C137: 0 | D137: 0 | E137: 0 | G137: 0 | H137: 0 | I137: 0 | J137: 0 | L137: 50650 | M137: 2.6803 | R137: 53050 | S137: 30.1626
A138: 1524 | B138: 0 | C138: 0 | D138: 0 | E138: 0 | G138: 0 | H138: 0 | I138: 0 | J138: 0 | L138: 50700 | M138: 0.1824 | R138: 53150 | S138: 23.5584
A139: 1526 | B139: 0 | C139: 0 | D139: 0 | E139: 0 | G139: 0 | H139: 0 | I139: 0 | J139: 0 | L139: 50750 | M139: 0 | R139: 53204 | S139: 11.7299
A140: 1527 | B140: 0 | C140: 0 | D140: 0 | E140: 0 | G140: 0 | H140: 0 | I140: 0 | J140: 0 | L140: 50800 | M140: 6.0008 | R140: 53254 | S140: 27.3041
A141: 1528 | B141: 0 | C141: 0 | D141: 0 | E141: 0 | G141: 0 | H141: 0 | I141: 0 | J141: 0 | L141: 50900 | M141: 1.4998 | R141: 53304 | S141: 30.4584
A142: 1667 | B142: 0 | C142: 0 | D142: 0 | E142: 0 | G142: 0 | H142: 0 | I142: 0 | J142: 0 | L142: 50950 | M142: 1.0004 | R142: 53354 | S142: 26.417
A143: 1702 | B143: 0 | C143: 0 | D143: 0 | E143: 0 | G143: 0 | H143: 0 | I143: 0 | J143: 0 | L143: 51150 | M143: 139.91 | R143: 53404 | S143: 56.481
A144: 1710 | B144: 22.91 | C144: 22.91 | D144: 0 | E144: 0 | G144: 44.8752 | H144: 0 | I144: 0 | J144: 44.8752 | L144: 51300 | M144: 1.7892 | R144: 53454 | S144: 59.6353
A145: 1713 | B145: 0 | C145: 0 | D145: 0 | E145: 0 | G145: 0 | H145: 0 | I145: 0 | J145: 0 | L145: 53000 | M145: 0 | R145: 53550 | S145: 22.8684
A146: 1714 | B146: 0 | C146: 0 | D146: 0 | E146: 0 | G146: 0 | H146: 0 | I146: 0 | J146: 0 | L146: 53050 | M146: 2.9997 | R146: 53604 | S146: 62.9867
A147: 1715 | B147: 0 | C147: 0 | D147: 0 | E147: 0 | G147: 0 | H147: 0 | I147: 0 | J147: 0 | L147: 53200 | M147: 0 | R147: 53654 | S147: 49.0882
A148: 1718 | B148: 0 | C148: 0 | D148: 0 | E148: 0 | G148: 0 | H148: 0 | I148: 0 | J148: 0 | L148: 53204 | M148: 9.3469 | R148: 53704 | S148: 38.9354
A149: 1719 | B149: 0 | C149: 0 | D149: 0 | E149: 0 | G149: 0 | H149: 0 | I149: 0 | J149: 0 | L149: 53254 | M149: 0.29 | R149: 53754 | S149: 63.9724
A150: 1730 | B150: 0 | C150: 0 | D150: 0 | E150: 0 | G150: 0 | H150: 0 | I150: 0 | J150: 0 | L150: 53304 | M150: 1.2501 | R150: 53854 | S150: 8.2799
A151: 1732 | B151: 0 | C151: 0 | D151: 0 | E151: 0 | G151: 0 | H151: 0 | I151: 0 | J151: 0 | L151: 53354 | M151: 3.1166 | R151: 53900 | S151: 8.5757
A152: 1735 | B152: 0 | C152: 0 | D152: 0 | E152: 0 | G152: 0 | H152: 0 | I152: 0 | J152: 0 | L152: 53754 | M152: 5.6173 | R152: 54000 | S152: 12.6171
A153: 1736 | B153: 0 | C153: 0 | D153: 0 | E153: 0 | G153: 0 | H153: 0 | I153: 0 | J153: 0 | L153: 53854 | M153: 8 | R153: 54050 | S153: 23.657
A154: 1755 | B154: 0 | C154: 0 | D154: 0 | E154: 0 | G154: 0 | H154: 0 | I154: 0 | J154: 0 | L154: 54104 | M154: 2.3002 | R154: 54104 | S154: 24.2484
A155: 1758 | B155: 0 | C155: 0 | D155: 0 | E155: 0 | G155: 0 | H155: 0 | I155: 0 | J155: 0 | L155: 54250 | M155: 137.916 | R155: 54200 | S155: 6.7028
A156: 1762 | B156: 0 | C156: 0 | D156: 0 | E156: 0 | G156: 0 | H156: 0 | I156: 0 | J156: 0 | L156: 54500 | M156: 11.86 | R156: 54750 | S156: 24.5441
A157: 1764 | B157: 0 | C157: 0 | D157: 0 | E157: 0 | G157: 0 | H157: 0 | I157: 0 | J157: 0 | L157: 58004 | M157: 0 | R157: 56000 | S157: 23.7555
A158: 1771 | B158: 0 | C158: 0 | D158: 0 | E158: 0 | G158: 27.6 | H158: 0 | I158: 0 | J158: 27.6 | L158: 58054 | M158: 3.9662 | R158: 56050 | S158: 16.4613
A159: 1772 | B159: 0 | C159: 0 | D159: 0 | E159: 0 | G159: 0 | H159: 0 | I159: 0 | J159: 0 | L159: 58104 | M159: 44.494 | R159: 56100 | S159: 4.14
A160: 1795 | B160: 0 | C160: 0 | D160: 0 | E160: 0 | G160: 0 | H160: 0 | I160: 0 | J160: 0 | L160: 58200 | M160: 3.4696 | R160: 58004 | S160: 4.9285
A161: 1810 | B161: 0 | C161: 0 | D161: 0 | E161: 0 | G161: 0 | H161: 0 | I161: 0 | J161: 0 | L161: 58304 | M161: 0 | R161: 58054 | S161: 4.9285
A162: 1813 | B162: 0 | C162: 0 | D162: 0 | E162: 0 | G162: 0 | H162: 0 | I162: 0 | J162: 0 | L162: 58450 | M162: 15 | R162: 58104 | S162: 1.9714
A163: 1816 | B163: 0 | C163: 0 | D163: 0 | E163: 0 | G163: 0 | H163: 0 | I163: 0 | J163: 0 | L163: 58500 | M163: 66.457 | R163: 58150 | S163: 14.7856
A164: 1820 | B164: 0 | C164: 0 | D164: 0 | E164: 0 | G164: 0 | H164: 0 | I164: 0 | J164: 0 | R164: 58200 | S164: 25.5298
A165: 1821 | B165: 0 | C165: 0 | D165: 0 | E165: 0 | G165: 0 | H165: 0 | I165: 0 | J165: 0 | R165: 58304 | S165: 20.0099
A166: 1822 | B166: 0 | C166: 0 | D166: 0 | E166: 0 | G166: 0 | H166: 0 | I166: 0 | J166: 0 | R166: 58350 | S166: 4.2385
A167: 1823 | B167: 0 | C167: 0 | D167: 0 | E167: 0 | G167: 0 | H167: 0 | I167: 0 | J167: 0
A168: 1828 | B168: 0 | C168: 0 | D168: 0 | E168: 0 | G168: 0 | H168: 0 | I168: 0 | J168: 0
A169: 1832 | B169: 0 | C169: 0 | D169: 0 | E169: 0 | G169: 0 | H169: 0 | I169: 0 | J169: 0
A170: 1833 | B170: 0 | C170: 0 | D170: 0 | E170: 0 | G170: 0 | H170: 0 | I170: 0 | J170: 0
A171: 1835 | B171: 0 | C171: 0 | D171: 0 | E171: 0 | G171: 0 | H171: 0 | I171: 0 | J171: 0
A172: 1840 | B172: 32.079 | C172: 0 | D172: 0 | E172: 32.079 | G172: 0 | H172: 0 | I172: 0 | J172: 0
A173: 1841 | B173: 0 | C173: 0 | D173: 0 | E173: 0 | G173: 0 | H173: 0 | I173: 0 | J173: 0
A174: 1842 | B174: 0 | C174: 0 | D174: 0 | E174: 0 | G174: 0 | H174: 0 | I174: 0 | J174: 0
A175: 1845 | B175: 0 | C175: 0 | D175: 0 | E175: 0 | G175: 0 | H175: 0 | I175: 0 | J175: 0
A176: 1846 | B176: 0 | C176: 0 | D176: 0 | E176: 0 | G176: 0 | H176: 0 | I176: 0 | J176: 0
A177: 1857 | B177: 0 | C177: 0 | D177: 0 | E177: 0 | G177: 0 | H177: 0 | I177: 0 | J177: 0
A178: 1862 | B178: 0 | C178: 0 | D178: 0 | E178: 0 | G178: 0 | H178: 0 | I178: 0 | J178: 0
A179: 1863 | B179: 0 | C179: 0 | D179: 0 | E179: 0 | G179: 0 | H179: 0 | I179: 0 | J179: 0
A180: 1869 | B180: 0 | C180: 0 | D180: 0 | E180: 0 | G180: 0 | H180: 0 | I180: 0 | J180: 0
A181: 1908 | B181: 0 | C181: 0 | D181: 0 | E181: 0 | G181: 0 | H181: 0 | I181: 0 | J181: 0
A182: 3029 | B182: 3.883 | C182: 0 | D182: 0 | E182: 3.883 | G182: 34.0642 | H182: 0 | I182: 0 | J182: 34.0642
A183: 3030 | B183: 0 | C183: 0 | D183: 0 | E183: 0 | G183: 31.4686 | H183: 0 | I183: 0 | J183: 31.4686
A184: 3031 | B184: 0 | C184: 0 | D184: 0 | E184: 0 | G184: 17.0187 | H184: 0 | I184: 0 | J184: 17.0187
A185: 3032 | B185: 88.9786 | C185: 0 | D185: 0 | E185: 88.9786 | G185: 1.6055 | H185: 0 | I185: 0 | J185: 1.6055
A186: 3033 | B186: 0 | C186: 0 | D186: 0 | E186: 0 | G186: 14.9315 | H186: 0 | I186: 0 | J186: 14.9315
A187: 3034 | B187: 99.338 | C187: 0 | D187: 0 | E187: 99.338 | G187: 29.1406 | H187: 0 | I187: 0 | J187: 29.1406
A188: 3036 | B188: 0 | C188: 0 | D188: 0 | E188: 0 | G188: 0 | H188: 0 | I188: 0 | J188: 0
A189: 3037 | B189: 0 | C189: 0 | D189: 0 | E189: 0 | G189: 51.0562 | H189: 0 | I189: 0 | J189: 51.0562
A190: 3038 | B190: 23.728 | C190: 0 | D190: 0 | E190: 23.728 | G190: 19.6184 | H190: 0 | I190: 0 | J190: 19.6184
A191: 3040 | B191: 0 | C191: 0 | D191: 0 | E191: 0 | G191: 9.4727 | H191: 0 | I191: 0 | J191: 9.4727
A192: 3045 | B192: 0 | C192: 0 | D192: 0 | E192: 0 | G192: 29.0603 | H192: 0 | I192: 0 | J192: 29.0603
A193: 3049 | B193: 0 | C193: 0 | D193: 0 | E193: 0 | G193: 25.6887 | H193: 0 | I193: 0 | J193: 25.6887
A194: 3052 | B194: =IFERROR(VLOOKUP(A194,L:M,2,0),0) -> 0 | C194: =IFERROR(VLOOKUP(A194,N:O,2,0),0) -> 0 | D194: =IFERROR(VLOOKUP(A194,P:Q,2,0),0) -> 0 | E194: =B194-C194-D194 -> 0 | G194: =IFERROR(VLOOKUP(A194,R:S,2,0),0) -> 41.7441 | H194: =IFERROR(VLOOKUP(A194,V:W,2,0),0) -> 0 | I194: =IFERROR(VLOOKUP(A194,T:U,2,0),0) -> 0 | J194: =G194-H194-I194 -> 41.7441
A195: 3055 | B195: 6.451 | C195: 0 | D195: 0 | E195: 6.451 | G195: 56.1492 | H195: 0 | I195: 0 | J195: 56.1492
A196: 3059 | B196: 0 | C196: 0 | D196: 0 | E196: 0 | G196: 0 | H196: 0 | I196: 0 | J196: 0
A197: 3060 | B197: 3.969 | C197: 0 | D197: 0 | E197: 3.969 | G197: 30.0236 | H197: 0 | I197: 0 | J197: 30.0236
A198: 3064 | B198: 0 | C198: 0 | D198: 0 | E198: 0 | G198: 2.848 | H198: 0 | I198: 0 | J198: 2.848
A199: 3075 | B199: 0 | C199: 0 | D199: 0 | E199: 0 | G199: 13.0049 | H199: 0 | I199: 0 | J199: 13.0049
A200: 3077 | B200: 0 | C200: 0 | D200: 0 | E200: 0 | G200: 31.1475 | H200: 0 | I200: 0 | J200: 31.1475
... 357 more rows

Sheet oor
A1: N° | B1: Nodo Retiro | C1: Generador | D1: Precio bloque 1 | E1: MW Ofertados Bloque 1 | F1: Precio Ofertado Bloque 1 | G1: MW Ofertados Bloque 2 | H1: Precio Ofertado Bloque 2 | I1: MW Ofertados Bloque 3 | J1: Precio Ofertado Bloque 3 | K1: MW Ofertados Bloque 4 | L1: Precio Ofertado Bloque 4 | M1: MW Ofertados Bloque 5
A2: 1 | B2: 1124 | C2: 1 | D2: 41.72 | E2: 38.32 | F2: 0 | G2: 0 | H2: 0 | I2: 0 | J2: 0 | K2: 0 | L2: 0 | M2: 0
A3: 2 | B3: 28161 | C3: 1 | D3: 35.15 | E3: 30 | F3: 34.15 | G3: 15 | H3: 0 | I3: 0 | J3: 0 | K3: 0 | L3: 0 | M3: 0
A4: 3 | B4: 28161 | C4: 1 | D4: 32.81 | E4: 5 | F4: 0 | G4: 0 | H4: 0 | I4: 0 | J4: 0 | K4: 0 | L4: 0 | M4: 0
A5: 4 | B5: 28181 | C5: 1 | D5: 32.81 | E5: 5 | F5: 0 | G5: 0 | H5: 0 | I5: 0 | J5: 0 | K5: 0 | L5: 0 | M5: 0
A6: 5 | B6: 27211 | C6: 1 | D6: 25 | E6: 10 | F6: 20 | G6: 5 | H6: 10 | I6: 5 | J6: 0 | K6: 0 | L6: 0 | M6: 0
A7: 6 | B7: 28181 | C7: 1 | D7: 1 | E7: 1.14 | F7: 0 | G7: 0 | H7: 0 | I7: 0 | J7: 0 | K7: 0 | L7: 0 | M7: 0
A8: 7 | B8: 27161 | C8: 1 | D8: 36.28 | E8: 25 | F8: 26.28 | G8: 10 | H8: 0 | I8: 0 | J8: 0 | K8: 0 | L8: 0 | M8: 0
A9: 8 | B9: 27131 | C9: 1 | D9: 35.11 | E9: 5 | F9: 33.11 | G9: 5 | H9: 0 | I9: 0 | J9: 0 | K9: 0 | L9: 0 | M9: 0
A10: 9 | B10: 27211 | C10: 1 | D10: 35.07 | E10: 20 | F10: 34 | G10: 15 | H10: 0 | I10: 0 | J10: 0 | K10: 0 | L10: 0 | M10: 0
A11: 10 | B11: 27211 | C11: 1 | D11: 33.86 | E11: 7.5 | F11: 32.94 | G11: 7.5 | H11: 1 | I11: 5 | J11: 0 | K11: 0 | L11: 0 | M11: 0
A12: 11 | B12: 27211 | C12: 1 | D12: 34.7 | E12: 15 | F12: 34.63 | G12: 5 | H12: 0 | I12: 0 | J12: 0 | K12: 0 | L12: 0 | M12: 0
A13: 12 | B13: 28161 | C13: 1 | D13: 34.7 | E13: 15 | F13: 34.63 | G13: 5 | H13: 0 | I13: 0 | J13: 0 | K13: 0 | L13: 0 | M13: 0
A14: 13 | B14: 27131 | C14: 1 | D14: 34.2 | E14: 20 | F14: 33.2 | G14: 10 | H14: 32.2 | I14: 10 | J14: 0 | K14: 0 | L14: 0 | M14: 0
A15: 14 | B15: 28161 | C15: 1 | D15: 35 | E15: 10 | F15: 0 | G15: 0 | H15: 0 | I15: 0 | J15: 0 | K15: 0 | L15: 0 | M15: 0
A16: 15 | B16: 3034 | C16: 1 | D16: 25 | E16: 30 | F16: 0 | G16: 0 | H16: 0 | I16: 0 | J16: 0 | K16: 0 | L16: 0 | M16: 0
A17: 16 | B17: 4403 | C17: 1 | D17: 46 | E17: 5 | F17: 0 | G17: 0 | H17: 0 | I17: 0 | J17: 0 | K17: 0 | L17: 0 | M17: 0
A18: 17 | B18: 4403 | C18: 1 | D18: 46 | E18: 5 | F18: 0 | G18: 0 | H18: 0 | I18: 0 | J18: 0 | K18: 0 | L18: 0 | M18: 0
A19: 18 | B19: 4403 | C19: 1 | D19: 45 | E19: 2.8 | F19: 0 | G19: 0 | H19: 0 | I19: 0 | J19: 0 | K19: 0 | L19: 0 | M19: 0
A20: 19 | B20: 4403 | C20: 1 | D20: 45 | E20: 8.5 | F20: 0 | G20: 0 | H20: 0 | I20: 0 | J20: 0 | K20: 0 | L20: 0 | M20: 0
A21: 20 | B21: 4402 | C21: 1 | D21: 41 | E21: 0.8 | F21: 0 | G21: 0 | H21: 0 | I21: 0 | J21: 0 | K21: 0 | L21: 0 | M21: 0
A22: 21 | B22: 6096 | C22: 1 | D22: 37.05 | E22: 240 | F22: 0 | G22: 0 | H22: 0 | I22: 0 | J22: 0 | K22: 0 | L22: 0 | M22: 0

Sheet ooi
A1: N° | B1: Nodo Inyeccion | C1: Generador | D1: Precio bloque 1 | E1: MW Ofertados Bloque 1 | F1: Precio Ofertado Bloque 1 | G1: MW Ofertados Bloque 2 | H1: Precio Ofertado Bloque 2 | I1: MW Ofertados Bloque 3 | J1: Precio Ofertado Bloque 3 | K1: MW Ofertados Bloque 4 | L1: Precio Ofertado Bloque 4 | M1: MW Ofertados Bloque 5
A2: 1 | B2: 1126 | C2: 1 | D2: 72.53 | E2: 0.538 | F2: 0 | G2: 0 | H2: 0 | I2: 0 | J2: 0 | K2: 0 | L2: 0 | M2: 0
A3: 2 | B3: 1710 | C3: 1 | D3: 72.53 | E3: 4.537 | F3: 0 | G3: 0 | H3: 0 | I3: 0 | J3: 0 | K3: 0 | L3: 0 | M3: 0
A4: 3 | B4: 1710 | C4: 1 | D4: 69 | E4: 1.33 | F4: 0 | G4: 0 | H4: 0 | I4: 0 | J4: 0 | K4: 0 | L4: 0 | M4: 0
A5: 4 | B5: 1710 | C5: 1 | D5: 58 | E5: 2.905 | F5: 0 | G5: 0 | H5: 0 | I5: 0 | J5: 0 | K5: 0 | L5: 0 | M5: 0
A6: 5 | B6: 1710 | C6: 1 | D6: 50 | E6: 1.2 | F6: 0 | G6: 0 | H6: 0 | I6: 0 | J6: 0 | K6: 0 | L6: 0 | M6: 0
A7: 6 | B7: 1710 | C7: 1 | D7: 55 | E7: 1.1 | F7: 0 | G7: 0 | H7: 0 | I7: 0 | J7: 0 | K7: 0 | L7: 0 | M7: 0
A8: 7 | B8: 1126 | C8: 1 | D8: 67.06 | E8: 0.935 | F8: 0 | G8: 0 | H8: 0 | I8: 0 | J8: 0 | K8: 0 | L8: 0 | M8: 0
A9: 8 | B9: 1710 | C9: 1 | D9: 56 | E9: 15.26 | F9: 0 | G9: 0 | H9: 0 | I9: 0 | J9: 0 | K9: 0 | L9: 0 | M9: 0
A10: 10 | B10: 1124 | C10: 1 | D10: 92 | E10: 28.155 | F10: 0 | G10: 0 | H10: 0 | I10: 0 | J10: 0 | K10: 0 | L10: 0 | M10: 0
A11: 11 | B11: 1124 | C11: 1 | D11: 259 | E11: 23.47 | F11: 0 | G11: 0 | H11: 0 | I11: 0 | J11: 0 | K11: 0 | L11: 0 | M11: 0
A12: 12 | B12: 1126 | C12: 1 | D12: 198 | E12: 16.568 | F12: 0 | G12: 0 | H12: 0 | I12: 0 | J12: 0 | K12: 0 | L12: 0 | M12: 0
A13: 13 | B13: 1124 | C13: 1 | D13: 167 | E13: 1.247 | F13: 0 | G13: 0 | H13: 0 | I13: 0 | J13: 0 | K13: 0 | L13: 0 | M13: 0
A14: 14 | B14: 1124 | C14: 1 | D14: 340.51 | E14: 37.455 | F14: 0 | G14: 0 | H14: 0 | I14: 0 | J14: 0 | K14: 0 | L14: 0 | M14: 0
A15: 15 | B15: 1124 | C15: 1 | D15: 150 | E15: 0.839 | F15: 0 | G15: 0 | H15: 0 | I15: 0 | J15: 0 | K15: 0 | L15: 0 | M15: 0
A16: 16 | B16: 1124 | C16: 1 | D16: 209.08 | E16: 22.389 | F16: 0 | G16: 0 | H16: 0 | I16: 0 | J16: 0 | K16: 0 | L16: 0 | M16: 0
A17: 17 | B17: 1124 | C17: 1 | D17: 130 | E17: 93.84 | F17: 0 | G17: 0 | H17: 0 | I17: 0 | J17: 0 | K17: 0 | L17: 0 | M17: 0
A18: 18 | B18: 1710 | C18: 1 | D18: 69 | E18: 1.32 | F18: 0 | G18: 0 | H18: 0 | I18: 0 | J18: 0 | K18: 0 | L18: 0 | M18: 0
A19: 19 | B19: 27301 | C19: 1 | D19: 51 | E19: 10 | F19: 56 | G19: 5 | H19: 61 | I19: 10 | J19: 0 | K19: 0 | L19: 0 | M19: 0
A20: 20 | B20: 28181 | C20: 1 | D20: 58.85 | E20: 5 | F20: 0 | G20: 0 | H20: 0 | I20: 0 | J20: 0 | K20: 0 | L20: 0 | M20: 0
A21: 21 | B21: 28161 | C21: 1 | D21: 53.03 | E21: 3 | F21: 0 | G21: 0 | H21: 0 | I21: 0 | J21: 0 | K21: 0 | L21: 0 | M21: 0
A22: 22 | B22: 28181 | C22: 1 | D22: 53.03 | E22: 10 | F22: 0 | G22: 0 | H22: 0 | I22: 0 | J22: 0 | K22: 0 | L22: 0 | M22: 0
A23: 23 | B23: 27161 | C23: 1 | D23: 53.88 | E23: 5 | F23: 58.88 | G23: 5 | H23: 0 | I23: 0 | J23: 0 | K23: 0 | L23: 0 | M23: 0
A24: 24 | B24: 27461 | C24: 1 | D24: 50.67 | E24: 15 | F24: 51.5 | G24: 5 | H24: 52 | I24: 5 | J24: 0 | K24: 0 | L24: 0 | M24: 0
A25: 25 | B25: 27461 | C25: 1 | D25: 51.25 | E25: 7.5 | F25: 53.69 | G25: 7.5 | H25: 0 | I25: 0 | J25: 0 | K25: 0 | L25: 0 | M25: 0
A26: 26 | B26: 27131 | C26: 1 | D26: 50.81 | E26: 17 | F26: 52.81 | G26: 5 | H26: 0 | I26: 0 | J26: 0 | K26: 0 | L26: 0 | M26: 0
A27: 27 | B27: 28181 | C27: 1 | D27: 50.81 | E27: 17 | F27: 52.81 | G27: 5 | H27: 0 | I27: 0 | J27: 0 | K27: 0 | L27: 0 | M27: 0
A28: 28 | B28: 27461 | C28: 1 | D28: 52.14 | E28: 15 | F28: 54.14 | G28: 15 | H28: 57.14 | I28: 10 | J28: 58.14 | K28: 20 | L28: 59.14 | M28: 10
A29: 29 | B29: 27301 | C29: 1 | D29: 52 | E29: 15 | F29: 54 | G29: 10 | H29: 0 | I29: 0 | J29: 0 | K29: 0 | L29: 0 | M29: 0
A30: 30 | B30: 4402 | C30: 1 | D30: 315 | E30: 10 | F30: 0 | G30: 0 | H30: 0 | I30: 0 | J30: 0 | K30: 0 | L30: 0 | M30: 0
A31: 31 | B31: 50350 | C31: 1 | D31: 196 | E31: 9 | F31: 0 | G31: 0 | H31: 0 | I31: 0 | J31: 0 | K31: 0 | L31: 0 | M31: 0
A32: 32 | B32: 50900 | C32: 1 | D32: 190 | E32: 106 | F32: 0 | G32: 0 | H32: 0 | I32: 0 | J32: 0 | K32: 0 | L32: 0 | M32: 0
A33: 33 | B33: 58200 | C33: 1 | D33: 208 | E33: 13 | F33: 0 | G33: 0 | H33: 0 | I33: 0 | J33: 0 | K33: 0 | L33: 0 | M33: 0
A34: 34 | B34: 6018 | C34: 1 | D34: 354.87 | E34: 14.345 | F34: 0 | G34: 0 | H34: 0 | I34: 0 | J34: 0 | K34: 0 | L34: 0 | M34: 0
A35: 35 | B35: 6003 | C35: 1 | D35: 63.12 | E35: 13.951 | F35: 0 | G35: 0 | H35: 0 | I35: 0 | J35: 0 | K35: 0 | L35: 0 | M35: 0
A36: 36 | B36: 6059 | C36: 1 | D36: 135.59 | E36: 17.48 | F36: 0 | G36: 0 | H36: 0 | I36: 0 | J36: 0 | K36: 0 | L36: 0 | M36: 0
A37: 37 | B37: 6059 | C37: 1 | D37: 84.21 | E37: 13.68 | F37: 0 | G37: 0 | H37: 0 | I37: 0 | J37: 0 | K37: 0 | L37: 0 | M37: 0
A38: 38 | B38: 6100 | C38: 1 | D38: 44.93 | E38: 41.268 | F38: 0 | G38: 0 | H38: 0 | I38: 0 | J38: 0 | K38: 0 | L38: 0 | M38: 0
A39: 39 | B39: 6171 | C39: 1 | D39: 77.62 | E39: 10.168 | F39: 0 | G39: 0 | H39: 0 | I39: 0 | J39: 0 | K39: 0 | L39: 0 | M39: 0
A40: 40 | B40: 6173 | C40: 1 | D40: 84.16 | E40: 10.636 | F40: 0 | G40: 0 | H40: 0 | I40: 0 | J40: 0 | K40: 0 | L40: 0 | M40: 0
A41: 41 | B41: 6003 | C41: 1 | D41: 63.12 | E41: 13.951 | F41: 0 | G41: 0 | H41: 0 | I41: 0 | J41: 0 | K41: 0 | L41: 0 | M41: 0
A42: 42 | B42: 6059 | C42: 1 | D42: 84.21 | E42: 13.68 | F42: 0 | G42: 0 | H42: 0 | I42: 0 | J42: 0 | K42: 0 | L42: 0 | M42: 0
A43: 43 | B43: 6059 | C43: 1 | D43: 135.59 | E43: 17.48 | F43: 0 | G43: 0 | H43: 0 | I43: 0 | J43: 0 | K43: 0 | L43: 0 | M43: 0
A44: 44 | B44: 6100 | C44: 1 | D44: 44.93 | E44: 41.268 | F44: 0 | G44: 0 | H44: 0 | I44: 0 | J44: 0 | K44: 0 | L44: 0 | M44: 0
A45: 45 | B45: 6171 | C45: 1 | D45: 77.62 | E45: 10.168 | F45: 0 | G45: 0 | H45: 0 | I45: 0 | J45: 0 | K45: 0 | L45: 0 | M45: 0
A46: 46 | B46: 6173 | C46: 1 | D46: 84.16 | E46: 10.636 | F46: 0 | G46: 0 | H46: 0 | I46: 0 | J46: 0 | K46: 0 | L46: 0 | M46: 0
A47: 47 | B47: 6059 | C47: 1 | D47: 258.23 | E47: 31.198 | F47: 0 | G47: 0 | H47: 0 | I47: 0 | J47: 0 | K47: 0 | L47: 0 | M47: 0
A48: 48 | B48: 6059 | C48: 1 | D48: 270.25 | E48: 26.619 | F48: 0 | G48: 0 | H48: 0 | I48: 0 | J48: 0 | K48: 0 | L48: 0 | M48: 0
A49: 49 | B49: 6003 | C49: 1 | D49: 63.12 | E49: 13.951 | F49: 0 | G49: 0 | H49: 0 | I49: 0 | J49: 0 | K49: 0 | L49: 0 | M49: 0
A50: 50 | B50: 6059 | C50: 1 | D50: 84.21 | E50: 13.68 | F50: 0 | G50: 0 | H50: 0 | I50: 0 | J50: 0 | K50: 0 | L50: 0 | M50: 0
A51: 51 | B51: 6059 | C51: 1 | D51: 135.59 | E51: 17.48 | F51: 0 | G51: 0 | H51: 0 | I51: 0 | J51: 0 | K51: 0 | L51: 0 | M51: 0
A52: 52 | B52: 6100 | C52: 1 | D52: 44.93 | E52: 41.268 | F52: 0 | G52: 0 | H52: 0 | I52: 0 | J52: 0 | K52: 0 | L52: 0 | M52: 0
A53: 53 | B53: 6171 | C53: 1 | D53: 77.62 | E53: 10.168 | F53: 0 | G53: 0 | H53: 0 | I53: 0 | J53: 0 | K53: 0 | L53: 0 | M53: 0
A54: 54 | B54: 6173 | C54: 1 | D54: 84.16 | E54: 10.636 | F54: 0 | G54: 0 | H54: 0 | I54: 0 | J54: 0 | K54: 0 | L54: 0 | M54: 0
A55: 55 | B55: 6290 | C55: 1 | D55: 245.29 | E55: 46.483 | F55: 0 | G55: 0 | H55: 0 | I55: 0 | J55: 0 | K55: 0 | L55: 0 | M55: 0
A56: 56 | B56: 6290 | C56: 1 | D56: 249.15 | E56: 46.113 | F56: 0 | G56: 0 | H56: 0 | I56: 0 | J56: 0 | K56: 0 | L56: 0 | M56: 0
A57: 57 | B57: 6003 | C57: 1 | D57: 63.12 | E57: 13.951 | F57: 0 | G57: 0 | H57: 0 | I57: 0 | J57: 0 | K57: 0 | L57: 0 | M57: 0
A58: 58 | B58: 6059 | C58: 1 | D58: 84.21 | E58: 13.68 | F58: 0 | G58: 0 | H58: 0 | I58: 0 | J58: 0 | K58: 0 | L58: 0 | M58: 0
A59: 59 | B59: 6059 | C59: 1 | D59: 135.59 | E59: 17.48 | F59: 0 | G59: 0 | H59: 0 | I59: 0 | J59: 0 | K59: 0 | L59: 0 | M59: 0
A60: 60 | B60: 6100 | C60: 1 | D60: 44.93 | E60: 43.496 | F60: 0 | G60: 0 | H60: 0 | I60: 0 | J60: 0 | K60: 0 | L60: 0 | M60: 0
A61: 61 | B61: 6171 | C61: 1 | D61: 77.62 | E61: 10.168 | F61: 0 | G61: 0 | H61: 0 | I61: 0 | J61: 0 | K61: 0 | L61: 0 | M61: 0
A62: 62 | B62: 6173 | C62: 1 | D62: 84.16 | E62: 10.636 | F62: 0 | G62: 0 | H62: 0 | I62: 0 | J62: 0 | K62: 0 | L62: 0 | M62: 0
A63: 63 | B63: 6003 | C63: 1 | D63: 63.12 | E63: 13.951 | F63: 0 | G63: 0 | H63: 0 | I63: 0 | J63: 0 | K63: 0 | L63: 0 | M63: 0
A64: 64 | B64: 6059 | C64: 1 | D64: 84.21 | E64: 13.68 | F64: 0 | G64: 0 | H64: 0 | I64: 0 | J64: 0 | K64: 0 | L64: 0 | M64: 0
A65: 65 | B65: 6059 | C65: 1 | D65: 135.59 | E65: 17.48 | F65: 0 | G65: 0 | H65: 0 | I65: 0 | J65: 0 | K65: 0 | L65: 0 | M65: 0
A66: 66 | B66: 6100 | C66: 1 | D66: 44.93 | E66: 43.496 | F66: 0 | G66: 0 | H66: 0 | I66: 0 | J66: 0 | K66: 0 | L66: 0 | M66: 0
A67: 67 | B67: 6171 | C67: 1 | D67: 77.62 | E67: 10.168 | F67: 0 | G67: 0 | H67: 0 | I67: 0 | J67: 0 | K67: 0 | L67: 0 | M67: 0
A68: 68 | B68: 6173 | C68: 1 | D68: 84.16 | E68: 10.636 | F68: 0 | G68: 0 | H68: 0 | I68: 0 | J68: 0 | K68: 0 | L68: 0 | M68: 0

Sheet cf
A1: N° | B1: Nodo Inyeccion | C1: Generador | D1: Nodo Retiro | E1: MW Energía Declarada | F1: MW Energía Requerida | G1: Precio Ofertado Bloque 1 | H1: MW Ofertados Bloque 1 | I1: Precio Ofertado Bloque 2 | J1: MW Ofertados Bloque 2 | K1: Precio Ofertado Bloque 3 | L1: MW Ofertados Bloque 3 | M1: Precio Ofertado Bloque 4 | N1: MW Ofertados Bloque 4 | O1: Precio Ofertado Bloque 5 | P1: MW Ofertados Bloque 5
A2: 1 | B2: 1710 | C2: 3_3183_005 | D2: 3183 | E2: 5.91 | F2: 5.91 | G2: 36 | H2: 5.91 | I2: 0 | J2: 0 | K2: 0 | L2: 0 | M2: 0 | N2: 0 | O2: 0 | P2: 0
A3: 2 | B3: 1124 | C3: 4_4403_119 | D3: 4403 | E3: 35 | F3: 35 | G3: 41.5 | H3: 35 | I3: 0 | J3: 0 | K3: 0 | L3: 0 | M3: 0 | N3: 0 | O3: 0 | P3: 0
A4: 3 | B4: 6005 | C4: 4_4750_005 | D4: 4750 | E4: 12 | F4: 12 | G4: 0 | H4: 12 | I4: 0 | J4: 0 | K4: 0 | L4: 0 | M4: 0 | N4: 0 | O4: 0 | P4: 0
A5: 4 | B5: 6008 | C5: 4_4750_136 | D5: 4750 | E5: 12 | F5: 25 | G5: 38 | H5: 25 | I5: 0 | J5: 0 | K5: 0 | L5: 0 | M5: 0 | N5: 0 | O5: 0 | P5: 0
A6: 5 | B6: 6008 | C6: 4_4750_129 | D6: 4750 | E6: 25 | F6: 12 | G6: 38 | H6: 12 | I6: 0 | J6: 0 | K6: 0 | L6: 0 | M6: 0 | N6: 0 | O6: 0 | P6: 0

Sheet cnfff
A1: N° | B1: nodo_i | C1: Generador | D1: nodo_r | E1: Energia declarada | F1: Precio_i bloque 1 | G1: Magnitud_i bloque 1 | H1: Precio_i bloque 2 | I1: Magnitud_i bloque 2 | J1: Precio_i bloque 3 | K1: Magnitud_i bloque 3 | L1: Precio_i bloque 4 | M1: Magnitud_i bloque 4 | N1: Precio_i bloque 5 | O1: Magnitud_i bloque 5 | P1: Precio_r bloque 1 | Q1: Magnitud_r bloque 1 | R1: Precio_i bloque r | S1: Magnitud_r bloque 2 | T1: Precio_r bloque 3 | U1: Magnitud_r bloque 3 | V1: Precio_r bloque 4 | W1: Magnitud_r bloque 4 | X1: Precio_r bloque 5 | Y1: Magnitud_r bloque 5 | Z1: k | AA1: Precio_max_cvt bloque 1 | AB1: Magnitud_max_cvt bloque 1 | AC1: Precio_max_cvt bloque 2 | AD1: Magnitud_max_cvt bloque 2 | AE1: Precio_max_cvt bloque 3 | AF1: Magnitud_max_cvt bloque 3 | AG1: Precio_max_cvt bloque 4 | AH1: Magnitud_max_cvt bloque 4 | AI1: Precio_max_cvt bloque 5 | AJ1: Magnitud_max_cvt bloque 5
A2: 1 | B2: 1710 | C2: 2_27161_270 | D2: 27161 | E2: 17 | F2: 122.39 | G2: 17 | H2: 0 | I2: 0 | J2: 0 | K2: 0 | L2: 0 | M2: 0 | N2: 0 | O2: 0 | P2: 15.74 | Q2: 17 | R2: 0 | S2: 0 | T2: 0 | U2: 0 | V2: 0 | W2: 0 | X2: 0 | Y2: 0 | Z2: 0 | AA2: 0.1 | AB2: 17 | AC2: 0 | AD2: 0 | AE2: 0 | AF2: 0 | AG2: 0 | AH2: 0 | AI2: 0 | AJ2: 0
A3: 2 | B3: 27301 | C3: 1_1124_1596 | D3: 1124 | E3: 15 | F3: 0 | G3: 0 | H3: 0 | I3: 0 | J3: 0 | K3: 0 | L3: 0 | M3: 0 | N3: 0 | O3: 0 | P3: 60 | Q3: 15 | R3: 0 | S3: 0 | T3: 0 | U3: 0 | V3: 0 | W3: 0 | X3: 0 | Y3: 0 | Z3: 0 | AA3: 0.1 | AB3: 15 | AC3: 0 | AD3: 0 | AE3: 0 | AF3: 0 | AG3: 0 | AH3: 0 | AI3: 0 | AJ3: 0
A4: 3 | B4: 27301 | C4: 1_1126_800 | D4: 1126 | E4: 10 | F4: 43 | G4: 10 | H4: 0 | I4: 0 | J4: 0 | K4: 0 | L4: 0 | M4: 0 | N4: 0 | O4: 0 | P4: 65 | Q4: 10 | R4: 0 | S4: 0 | T4: 0 | U4: 0 | V4: 0 | W4: 0 | X4: 0 | Y4: 0 | Z4: 0 | AA4: 0.01 | AB4: 10 | AC4: 0 | AD4: 0 | AE4: 0 | AF4: 0 | AG4: 0 | AH4: 0 | AI4: 0 | AJ4: 0
A5: 4 | B5: 6018 | C5: 2_27461_680 | D5: 27461 | E5: 3.599 | F5: 41.5 | G5: 3.599 | H5: 0 | I5: 0 | J5: 0 | K5: 0 | L5: 0 | M5: 0 | N5: 0 | O5: 0 | P5: 0 | Q5: 0 | R5: 0 | S5: 0 | T5: 0 | U5: 0 | V5: 0 | W5: 0 | X5: 0 | Y5: 0 | Z5: 0 | AA5: 0.01 | AB5: 3.599 | AC5: 0 | AD5: 0 | AE5: 0 | AF5: 0 | AG5: 0 | AH5: 0 | AI5: 0 | AJ5: 0
A6: 5 | B6: 6100 | C6: 2_27461_680 | D6: 27461 | E6: 1.401 | F6: 41.5 | G6: 1.401 | H6: 0 | I6: 0 | J6: 0 | K6: 0 | L6: 0 | M6: 0 | N6: 0 | O6: 0 | P6: 0 | Q6: 0 | R6: 0 | S6: 0 | T6: 0 | U6: 0 | V6: 0 | W6: 0 | X6: 0 | Y6: 0 | Z6: 0 | AA6: 0.01 | AB6: 1.401 | AC6: 0 | AD6: 0 | AE6: 0 | AF6: 0 | AG6: 0 | AH6: 0 | AI6: 0 | AJ6: 0
A7: 6 | B7: 6018 | C7: 2_27461_681 | D7: 27461 | E7: 4.751 | F7: 41.5 | G7: 4.751 | H7: 0 | I7: 0 | J7: 0 | K7: 0 | L7: 0 | M7: 0 | N7: 0 | O7: 0 | P7: 0 | Q7: 0 | R7: 0 | S7: 0 | T7: 0 | U7: 0 | V7: 0 | W7: 0 | X7: 0 | Y7: 0 | Z7: 0 | AA7: 0.01 | AB7: 4.751 | AC7: 0 | AD7: 0 | AE7: 0 | AF7: 0 | AG7: 0 | AH7: 0 | AI7: 0 | AJ7: 0
A8: 7 | B8: 6100 | C8: 2_27461_681 | D8: 27461 | E8: 1.849 | F8: 41.5 | G8: 1.849 | H8: 0 | I8: 0 | J8: 0 | K8: 0 | L8: 0 | M8: 0 | N8: 0 | O8: 0 | P8: 0 | Q8: 0 | R8: 0 | S8: 0 | T8: 0 | U8: 0 | V8: 0 | W8: 0 | X8: 0 | Y8: 0 | Z8: 0 | AA8: 0.01 | AB8: 1.849 | AC8: 0 | AD8: 0 | AE8: 0 | AF8: 0 | AG8: 0 | AH8: 0 | AI8: 0 | AJ8: 0
